DepartmentFamily,Entity,Date,ExpenseType,ExpenseArea,Supplier,PaymentNumber,InvoiceDistributionAmount,InvoiceDescription,SupplierPostCode,TransactionType
FOOD STANDARDS AGENCY - Westminster,FOOD STANDARDS AGENCY - Westminster,2019-02-27,EXP - PURCHASE OF GOODS/SERVICES - OTHER PROFESSIONAL SERVICES,REGULATORY DELIVERY,TRADING STANDARDS INSTITUTE (GRANTS),1011708663,328109.01,To deliver a programme of Official Controls (inland inspections/sampling & ports work) in 2018/19.,SS15 6TH,ADMIN
FOOD STANDARDS AGENCY - Westminster,FOOD STANDARDS AGENCY - Westminster,2019-02-15,EXP - PURCHASE OF GOODS/SERVICES - SHARED SERV OUTSRCG- CIVIL SERV PENSION ADMIN,FINANCE,LONDON PENSIONS FUND AUTHORITY,1011708553,121657.75,2018-19 LPFA Pension Deficit reduction.,EC3N 4LP,ADMIN
FOOD STANDARDS AGENCY - Westminster,FOOD STANDARDS AGENCY - Westminster,2019-02-12,EXP - PURCHASE OF GOODS/SERVICES - OTHER ICT COSTS - COMPUTER HARDWARE,IT SERVICE DELIVERY,COMPUTACENTER UK LTD,1011708495,121087.50,Lenovo laptops,AL10 9TW,ADMIN
FOOD STANDARDS AGENCY - Westminster,FOOD STANDARDS AGENCY - Westminster,2019-02-13,EXP - PURCHASE OF GOODS/SERVICES - OTHER PROFESSIONAL SERVICES,SCIENTIFIC METHODS AND LABORATORY POLICY,ERNST & YOUNG LLP,1011708509,101410.94,FS101212-Funding for the 2nd phase review of UK's official control laboratories in food and feed enforcement ,SE1 2AF,ADMIN
FOOD STANDARDS AGENCY - Westminster,FOOD STANDARDS AGENCY - Westminster,2019-02-13,EXP - PURCHASE OF GOODS/SERVICES - OTHER - PROGRAMME EXPENDITURE,"NOVEL FOODS, GM, RADIOLOGICAL AND FEED ADDITIVES",C E F A S,2012700571,77054.94,FS101211 - Sampling and analysis contact to be undertaken by CEFAS,NR33 0HT,PROGRAMME
FOOD STANDARDS AGENCY - Westminster,FOOD STANDARDS AGENCY - Westminster,2019-02-13,EXP - PURCHASE OF GOODS/SERVICES - OTHER - PROGRAMME EXPENDITURE,"NOVEL FOODS, GM, RADIOLOGICAL AND FEED ADDITIVES",C E F A S,2012700571,77054.94,FS101211 - Sampling and analysis contact to be undertaken by CEFAS,NR33 0HT,PROGRAMME
FOOD STANDARDS AGENCY - Westminster,FOOD STANDARDS AGENCY - Westminster,2019-02-13,EXP - PURCHASE OF GOODS/SERVICES - OTHER - PROGRAMME EXPENDITURE,"NOVEL FOODS, GM, RADIOLOGICAL AND FEED ADDITIVES",C E F A S,2012700571,77054.94,FS101211 - Sampling and analysis contact to be undertaken by CEFAS,NR33 0HT,PROGRAMME
FOOD STANDARDS AGENCY - Westminster,FOOD STANDARDS AGENCY - Westminster,2019-02-13,EXP - PURCHASE OF GOODS/SERVICES - OTHER - PROGRAMME EXPENDITURE,"NOVEL FOODS, GM, RADIOLOGICAL AND FEED ADDITIVES",C E F A S,2012700571,77054.94,FS101211 - Sampling and analysis contact to be undertaken by CEFAS,NR33 0HT,PROGRAMME
FOOD STANDARDS AGENCY - Westminster,FOOD STANDARDS AGENCY - Westminster,2019-02-13,EXP - PURCHASE OF GOODS/SERVICES - OTHER - PROGRAMME EXPENDITURE,"NOVEL FOODS, GM, RADIOLOGICAL AND FEED ADDITIVES",C E F A S,2012700571,77054.94,FS101211 - Sampling and analysis contact to be undertaken by CEFAS,NR33 0HT,PROGRAMME
FOOD STANDARDS AGENCY - Westminster,FOOD STANDARDS AGENCY - Westminster,2019-02-27,EXP - PURCHASE OF GOODS/SERVICES - OTHER PROFESSIONAL SERVICES,REGULATORY DELIVERY,TRADING STANDARDS INSTITUTE (GRANTS),1011708663,69189.00,To deliver a programme of Official Controls (Food Hygiene at Primary Production) in 2018/19.,SS15 6TH,ADMIN
FOOD STANDARDS AGENCY - Westminster,FOOD STANDARDS AGENCY - Westminster,2019-02-22,EXP - PURCHASE OF GOODS/SERVICES - OTHER - PROGRAMME EXPENDITURE,ANALYTICS UNIT,NATIONAL CENTRE FOR SOCIAL RESEARCH,1011708630,51581.00,Completion of W5 fieldwork,EC1V 0AX,PROGRAMME
FOOD STANDARDS AGENCY - Westminster,FOOD STANDARDS AGENCY - Westminster,2019-02-25,EXP - PURCHASE OF GOODS/SERVICES - OTHER ICT COSTS - COMPUTER SOFTWARE,IT STRATEGY & DEVELOPMENT,SERVICENOW UK LTD,1011708640,50688.00,SERVICE MANAGEMENT SUITE,TW18 4TW,ADMIN
FOOD STANDARDS AGENCY - Westminster,FOOD STANDARDS AGENCY - Westminster,2019-02-19,EXP - PURCHASE OF GOODS/SERVICES - OTHER ICT COSTS - COMPUTER HARDWARE,IT SERVICE DELIVERY,COREAZURE LTD,1011708575,45769.51,Datacentre Discovery and Design,EC1A 4EN,ADMIN
FOOD STANDARDS AGENCY - Westminster,FOOD STANDARDS AGENCY - Westminster,2019-02-22,EXP - AMORTISATION - INTANGIBLE ASSETS,IT SERVICE DELIVERY,COMPUTACENTER UK LTD,1011708620,37546.00,Samsung Galaxy J5,AL10 9TW,CAPITAL
FOOD STANDARDS AGENCY - Westminster,FOOD STANDARDS AGENCY - Westminster,2019-02-25,EXP - PURCHASE OF GOODS/SERVICES - TELECOMS - TELEPHONE,IT SERVICE DELIVERY,VODAFONE LTD,1011708633,34167.92,Vodafone Quarterly PSN Charges,MK3 5JL,ADMIN
FOOD STANDARDS AGENCY - Westminster,FOOD STANDARDS AGENCY - Westminster,2019-02-05,EXP - PURCHASE OF GOODS/SERVICES - OTHER - PROGRAMME EXPENDITURE,ANALYTICS UNIT,COMMUNITY RESEARCH LTD,1011708403,33604.00,"Consumer research to inform the style, appearance, necessary content and best location for food industry recall notices and effective communication channels for them.",LE9 4WB,PROGRAMME
FOOD STANDARDS AGENCY - Westminster,FOOD STANDARDS AGENCY - Westminster,2019-02-04,EXP - PURCHASE OF GOODS/SERVICES - IT MANAGEMENT AND CHANGE - IT DEVELOPMENT,IT STRATEGY & DEVELOPMENT,CIVICA UK LTD,1011708391,32726.60,T&M Call-off: Additional Professional Services,DY1 4TD,ADMIN
FOOD STANDARDS AGENCY - Westminster,FOOD STANDARDS AGENCY - Westminster,2019-02-19,EXP - AMORTISATION - INTANGIBLE ASSETS,REGULATING OUR FUTURE,EPIMORPHICS LTD,1011708578,31775.00,ROF - WP 15 - UV Phase 1 Build,BS20 6PT,CAPITAL
FOOD STANDARDS AGENCY - Westminster,FOOD STANDARDS AGENCY - Westminster,2019-02-01,EXP - PURCHASE OF GOODS/SERVICES - OTHER ICT COSTS - COMPUTER HARDWARE,IT SERVICE DELIVERY,COREAZURE LTD,1011708378,31655.00,Datacentre Discovery and Design,EC1A 4EN,ADMIN
FOOD STANDARDS AGENCY - Westminster,FOOD STANDARDS AGENCY - Westminster,2019-02-14,EXP - PURCHASE OF GOODS/SERVICES - IT MANAGEMENT AND CHANGE - IT DEVELOPMENT,OPERATIONAL DELIVERY,DUN & BRADSTREET LTD,1011708526,30467.25,Market Insight to support Risk Assessment of FBOs,SL7 1AJ,PROGRAMME
FOOD STANDARDS AGENCY - Westminster,FOOD STANDARDS AGENCY - Westminster,2019-02-14,EXP - PURCHASE OF GOODS/SERVICES - IT MANAGEMENT AND CHANGE - IT DEVELOPMENT,OPERATIONAL DELIVERY,DUN & BRADSTREET LTD,1011708526,30467.25,Market Insight to support Risk Assessment of FBOs,SL7 1AJ,PROGRAMME
FOOD STANDARDS AGENCY - Westminster,FOOD STANDARDS AGENCY - Westminster,2019-02-27,EXP - PURCHASE OF GOODS/SERVICES - OTHER PROFESSIONAL SERVICES,REGULATORY DELIVERY,TRADING STANDARDS INSTITUTE (GRANTS),1011708663,30402.00,Feed Official Controls funding 2018/19: NTS/TSI fees,SS15 6TH,ADMIN
FOOD STANDARDS AGENCY - Westminster,FOOD STANDARDS AGENCY - Westminster,2019-02-28,EXP - PURCHASE OF GOODS/SERVICES - IT MANAGEMENT AND CHANGE - IT DEVELOPMENT,OPERATIONAL DELIVERY,COREAZURE LTD,1011708678,28950.00,IT in Meat Plants - Citrix Support (CCN035),EC1A 4EN,PROGRAMME
FOOD STANDARDS AGENCY - Westminster,FOOD STANDARDS AGENCY - Westminster,2019-02-08,EXP - PURCHASE OF GOODS/SERVICES - OTHER - PROGRAMME EXPENDITURE,SCIENTIFIC METHODS AND LABORATORY POLICY,LGC LTD,1011708470,26667.00,FS101206-DEVELOPMENT OF QUALITY CONTROL MATERIALS FOR FOOD ALLERGEN ANALYSIS,TW11 0LY,PROGRAMME
FOOD STANDARDS AGENCY - Westminster,FOOD STANDARDS AGENCY - Westminster,2019-02-13,EXP - PURCHASE OF GOODS/SERVICES - OTHER FACILITIES COSTS - MEETING ROOM HIRE,COMMS,LEWIS LIVE LTD,1011708519,24987.75,Lewis Live - cost for event management of FSA Management Conference 2018,KT1 2SZ,ADMIN
FOOD STANDARDS AGENCY - Westminster,FOOD STANDARDS AGENCY - Westminster,2019-02-01,EXP - PURCHASE OF GOODS/SERV - SUPPORT - IT SUPPORT SERVICES,IT SERVICE DELIVERY,LITTLE FISH UK LTD,1011708379,24611.00,Littlefish user service charge,NG1 1LS,ADMIN
FOOD STANDARDS AGENCY - Westminster,FOOD STANDARDS AGENCY - Westminster,2019-02-01,EXP - PURCHASE OF GOODS/SERV - SUPPORT - IT SUPPORT SERVICES,IT SERVICE DELIVERY,LITTLE FISH UK LTD,1011708379,24264.00,LittleFish Service Desk charge ,NG1 1LS,ADMIN
FOOD STANDARDS AGENCY - Westminster,FOOD STANDARDS AGENCY - Westminster,2019-02-12,EXP - PURCHASE OF GOODS/SERVICES - OTHER ICT COSTS - COMPUTER HARDWARE,IT SERVICE DELIVERY,COMPUTACENTER UK LTD,1011708495,24217.50,Lenovo laptop,AL10 9TW,ADMIN
FOOD STANDARDS AGENCY - Westminster,FOOD STANDARDS AGENCY - Westminster,2019-02-19,EXP - PURCHASE OF GOODS/SERV - SUPPORT - IT SUPPORT SERVICES,FINANCE,SHARED SERVICES CONNECTED LTD,1011708579,24178.93,SSCL Core Charge Management Services ,HP2 7AH,ADMIN
FOOD STANDARDS AGENCY - Westminster,FOOD STANDARDS AGENCY - Westminster,2019-02-21,EXP - AMORTISATION - INTANGIBLE ASSETS,NATIONAL FOOD CRIME UNIT - PHASE 2,METHODS BUSINESS AND DIGITAL TECHNOLOGY LTD,1011708595,22789.38,Systems Integrator ? Work package 1,EC1A 4EN,CAPITAL
FOOD STANDARDS AGENCY - Westminster,FOOD STANDARDS AGENCY - Westminster,2019-02-13,EXP - PURCHASE OF GOODS/SERVICES - OTHER PROFESSIONAL SERVICES,SCIENTIFIC METHODS AND LABORATORY POLICY,ERNST & YOUNG LLP,1011708509,20282.19,FS101212-Funding for the 2nd phase review of UK's official control laboratories in food and feed enforcement,SE1 2AF,ADMIN
FOOD STANDARDS AGENCY - Westminster,FOOD STANDARDS AGENCY - Westminster,2019-02-08,EXP - SHORT-TERM CONTRACT & AGENCY STAFF - FULL COST,COMMS,ALEXANDER MANN SOLUTIONS LTD-2WM,1011708475,11263.27,"TEMPORARY STAFF											",EC2N 3AQ,ADMIN
FOOD STANDARDS AGENCY - Westminster,FOOD STANDARDS AGENCY - Westminster,2019-02-25,EXP - PURCHASE OF GOODS/SERVICES - OTHER ICT COSTS - COMPUTER SOFTWARE,IT STRATEGY & DEVELOPMENT,SERVICENOW UK LTD,1011708640,10137.60,SERVICE MANAGEMENT SUITE,TW18 4TW,ADMIN
FOOD STANDARDS AGENCY - Westminster,FOOD STANDARDS AGENCY - Westminster,2019-02-25,EXP - PURCHASE OF GOODS/SERVICES - ICT OUTSOURCING & MAINT/SUPPORT,IT SERVICE DELIVERY,SERVICENOW UK LTD,1011708640,8876.40,Additional charge ServiceNow Fulfiller Licenses - 2019,TW18 4TW,ADMIN
FOOD STANDARDS AGENCY - Westminster,FOOD STANDARDS AGENCY - Westminster,2019-02-25,EXP - PURCHASE OF GOODS/SERVICES - TELECOMS - TELEPHONE,IT SERVICE DELIVERY,VODAFONE LTD,1011708633,6833.58,Vodafone PSN Charges ,MK3 5JL,ADMIN
FOOD STANDARDS AGENCY - Westminster,FOOD STANDARDS AGENCY - Westminster,2019-02-08,EXP - SHORT-TERM CONTRACT & AGENCY STAFF - FULL COST,IT Service Delivery,ALEXANDER MANN SOLUTIONS LTD-2WM,1011708475,6436.44,"TEMPORARY STAFF											",EC2N 3AQ,ADMIN
FOOD STANDARDS AGENCY - Westminster,FOOD STANDARDS AGENCY - Westminster,2019-02-22,EXP - SHORT-TERM CONTRACT & AGENCY STAFF - FULL COST,IT Service Delivery,ALEXANDER MANN SOLUTIONS LTD-2WM,1011708611,6436.44,TEMPORARY STAFF,EC2N 3AQ,ADMIN
FOOD STANDARDS AGENCY - Westminster,FOOD STANDARDS AGENCY - Westminster,2019-02-19,EXP - AMORTISATION - INTANGIBLE ASSETS,REGULATING OUR FUTURE,EPIMORPHICS LTD,1011708578,6355.00,ROF - WP 15 - UV Phase 1 Build,BS20 6PT,CAPITAL
FOOD STANDARDS AGENCY - Westminster,FOOD STANDARDS AGENCY - Westminster,2019-02-14,EXP - PURCHASE OF GOODS/SERVICES - IT MANAGEMENT AND CHANGE - IT DEVELOPMENT,OPERATIONAL DELIVERY,DUN & BRADSTREET LTD,1011708526,6093.45,Market Insight to support Risk Assessment of FBOs,SL7 1AJ,PROGRAMME
FOOD STANDARDS AGENCY - Westminster,FOOD STANDARDS AGENCY - Westminster,2019-02-14,EXP - PURCHASE OF GOODS/SERVICES - IT MANAGEMENT AND CHANGE - IT DEVELOPMENT,OPERATIONAL DELIVERY,DUN & BRADSTREET LTD,1011708526,6093.45,Market Insight to support Risk Assessment of FBOs,SL7 1AJ,PROGRAMME
FOOD STANDARDS AGENCY - Westminster,FOOD STANDARDS AGENCY - Westminster,2019-02-22,EXP - SHORT-TERM CONTRACT & AGENCY STAFF - FULL COST,Operational Delivery,ALEXANDER MANN SOLUTIONS LTD-2WM,1011708611,5296.98,TEMPORARY STAFF,EC2N 3AQ,PROGRAMME
FOOD STANDARDS AGENCY - Westminster,FOOD STANDARDS AGENCY - Westminster,2019-02-08,EXP - SHORT-TERM CONTRACT & AGENCY STAFF - FULL COST,FINANCE,ALEXANDER MANN SOLUTIONS LTD-2WM,1011708475,5010.48,"TEMPORARY STAFF											",EC2N 3AQ,ADMIN
FOOD STANDARDS AGENCY - Westminster,FOOD STANDARDS AGENCY - Westminster,2019-02-22,EXP - SHORT-TERM CONTRACT & AGENCY STAFF - FULL COST,FINANCE,ALEXANDER MANN SOLUTIONS LTD-2WM,1011708611,5010.48,TEMPORARY STAFF,EC2N 3AQ,ADMIN
FOOD STANDARDS AGENCY - Westminster,FOOD STANDARDS AGENCY - Westminster,2019-02-22,EXP - SHORT-TERM CONTRACT & AGENCY STAFF - FULL COST,COMMS,ALEXANDER MANN SOLUTIONS LTD-2WM,1011708611,5001.46,TEMPORARY STAFF,EC2N 3AQ,ADMIN
FOOD STANDARDS AGENCY - Westminster,FOOD STANDARDS AGENCY - Westminster,2019-02-05,EXP - PURCHASE OF GOODS/SERVICES - SUBSISTENCE,Operational Delivery,CORPORATE TRAVEL MANAGEMENT NORTH LTD,1011708405,4300.06,Week 4 Travel Expenses,BD1 5HQ,PROGRAMME
FOOD STANDARDS AGENCY - Westminster,FOOD STANDARDS AGENCY - Westminster,2019-02-13,EXP - PURCHASE OF GOODS/SERVICES - OTHER FACILITIES COSTS  - MEETING ROOM HIRE,NFCU Phase 2,CALDER CONFERENCES LTD,1011708520,3672.66,FSA Conference spend Nov 18 onwards,LS16 6RF,PROGRAMME
FOOD STANDARDS AGENCY - Westminster,FOOD STANDARDS AGENCY - Westminster,2019-02-13,EXP - PURCHASE OF GOODS/SERVICES - OTHER FACILITIES COSTS  - MEETING ROOM HIRE,Chair & Deputy Chair,CALDER CONFERENCES LTD,1011708520,3625.02,FSA Conference spend Nov 18 onwards,LS16 6RF,ADMIN
FOOD STANDARDS AGENCY - Westminster,FOOD STANDARDS AGENCY - Westminster,2019-02-22,EXP - SHORT-TERM CONTRACT & AGENCY STAFF - FULL COST,NFCU Phase 2,ALEXANDER MANN SOLUTIONS LTD-2WM,1011708611,3565.07,TEMPORARY STAFF,EC2N 3AQ,PROGRAMME
FOOD STANDARDS AGENCY - Westminster,FOOD STANDARDS AGENCY - Westminster,2019-02-08,EXP - SHORT-TERM CONTRACT & AGENCY STAFF - FULL COST,NFCU Phase 2,ALEXANDER MANN SOLUTIONS LTD-2WM,1011708475,3279.32,"TEMPORARY STAFF											",EC2N 3AQ,PROGRAMME
FOOD STANDARDS AGENCY - Westminster,FOOD STANDARDS AGENCY - Westminster,2019-02-20,EXP - PURCHASE OF GOODS/SERVICES - RAIL TRAVEL,Operational Delivery,CORPORATE TRAVEL MANAGEMENT NORTH LTD,1011708586,2823.90,Week 6 Travel Expenses,BD1 5HQ,PROGRAMME
FOOD STANDARDS AGENCY - Westminster,FOOD STANDARDS AGENCY - Westminster,2019-02-26,EXP - PURCHASE OF GOODS/SERVICES - RAIL TRAVEL,Operational Delivery,CORPORATE TRAVEL MANAGEMENT NORTH LTD,1011708650,2712.06,Week 7 Travel Expenses,BD1 5HQ,PROGRAMME
FOOD STANDARDS AGENCY - Westminster,FOOD STANDARDS AGENCY - Westminster,2019-02-12,EXP - PURCHASE OF GOODS/SERVICES - RAIL TRAVEL,Operational Delivery,CORPORATE TRAVEL MANAGEMENT NORTH LTD,1011708496,2652.29,Week 5 Travel Expenses,BD1 5HQ,PROGRAMME
FOOD STANDARDS AGENCY - Westminster,FOOD STANDARDS AGENCY - Westminster,2019-02-13,EXP - PURCHASE OF GOODS/SERVICES - OTHER FACILITIES COSTS  - MEETING ROOM HIRE,Analytics Unit,CALDER CONFERENCES LTD,1011708520,2544.05,FSA Conference spend Nov 18 onwards,LS16 6RF,ADMIN
FOOD STANDARDS AGENCY - Westminster,FOOD STANDARDS AGENCY - Westminster,2019-02-05,EXP - PURCHASE OF GOODS/SERVICES - OTHER - PROGRAMME EXPENDITURE,ANALYTICS UNIT,COMMUNITY RESEARCH LTD,1011708403,2500.00,FS404001 Recalls Project - Presentation,LE9 4WB,PROGRAMME
FOOD STANDARDS AGENCY - Westminster,FOOD STANDARDS AGENCY - Westminster,2019-02-22,EXP - SHORT-TERM CONTRACT & AGENCY STAFF - FULL COST,Imports & Exports Team (Admin),ALEXANDER MANN SOLUTIONS LTD-2WM,1011708611,2429.29,TEMPORARY STAFF,EC2N 3AQ,ADMIN
FOOD STANDARDS AGENCY - Westminster,FOOD STANDARDS AGENCY - Westminster,2019-02-20,EXP - PURCHASE OF GOODS/SERVICES - RAIL TRAVEL,NFCU Phase 2,CORPORATE TRAVEL MANAGEMENT NORTH LTD,1011708586,2310.85,Week 6 Travel Expenses,BD1 5HQ,PROGRAMME
FOOD STANDARDS AGENCY - Westminster,FOOD STANDARDS AGENCY - Westminster,2019-02-26,EXP - PURCHASE OF GOODS/SERVICES -  FOREIGN AIR TRAVEL,Operational Delivery,CORPORATE TRAVEL MANAGEMENT NORTH LTD,1011708650,2229.50,Week 7 Travel Expenses,BD1 5HQ,PROGRAMME
FOOD STANDARDS AGENCY - Westminster,FOOD STANDARDS AGENCY - Westminster,2019-02-12,EXP - PURCHASE OF GOODS/SERVICES - SUBSISTENCE,East 4,CORPORATE TRAVEL MANAGEMENT NORTH LTD,1011708496,2185.33,Week 5 Travel Expenses,BD1 5HQ,PROGRAMME
FOOD STANDARDS AGENCY - Westminster,FOOD STANDARDS AGENCY - Westminster,2019-02-05,EXP - PURCHASE OF GOODS/SERVICES - RAIL TRAVEL,Operational Delivery,CORPORATE TRAVEL MANAGEMENT NORTH LTD,1011708405,2181.55,Week 4 Travel Expenses,BD1 5HQ,PROGRAMME
FOOD STANDARDS AGENCY - Westminster,FOOD STANDARDS AGENCY - Westminster,2019-02-13,EXP - PURCHASE OF GOODS/SERVICES - OTHER FACILITIES COSTS  - MEETING ROOM HIRE,Food Incidents & Resilience - Prog,CALDER CONFERENCES LTD,1011708520,2174.67,FSA Conference spend Nov 18 onwards,LS16 6RF,PROGRAMME
FOOD STANDARDS AGENCY - Westminster,FOOD STANDARDS AGENCY - Westminster,2019-02-05,EXP - PURCHASE OF GOODS/SERVICES - SUBSISTENCE,East 4,CORPORATE TRAVEL MANAGEMENT NORTH LTD,1011708405,2144.67,Week 4 Travel Expenses,BD1 5HQ,PROGRAMME
FOOD STANDARDS AGENCY - Westminster,FOOD STANDARDS AGENCY - Westminster,2019-02-13,EXP - PURCHASE OF GOODS/SERVICES - OTHER FACILITIES COSTS  - MEETING ROOM HIRE,Chief Scientific Advisors team,CALDER CONFERENCES LTD,1011708520,2105.95,FSA Conference spend Nov 18 onwards,LS16 6RF,ADMIN
FOOD STANDARDS AGENCY - Westminster,FOOD STANDARDS AGENCY - Westminster,2019-02-12,EXP - PURCHASE OF GOODS/SERVICES - RAIL TRAVEL,NFCU Phase 2,CORPORATE TRAVEL MANAGEMENT NORTH LTD,1011708496,2105.40,Week 5 Travel Expenses,BD1 5HQ,PROGRAMME
FOOD STANDARDS AGENCY - Westminster,FOOD STANDARDS AGENCY - Westminster,2019-02-26,EXP - PURCHASE OF GOODS/SERVICES - RAIL TRAVEL,NFCU Phase 2,CORPORATE TRAVEL MANAGEMENT NORTH LTD,1011708650,1993.25,Week 7 Travel Expenses,BD1 5HQ,PROGRAMME
FOOD STANDARDS AGENCY - Westminster,FOOD STANDARDS AGENCY - Westminster,2019-02-13,EXP - PURCHASE OF GOODS/SERVICES - OTHER FACILITIES COSTS  - MEETING ROOM HIRE,Operational Delivery,CALDER CONFERENCES LTD,1011708520,1925.34,FSA Conference spend Nov 18 onwards,LS16 6RF,PROGRAMME
FOOD STANDARDS AGENCY - Westminster,FOOD STANDARDS AGENCY - Westminster,2019-02-12,EXP - PURCHASE OF GOODS/SERVICES - RAIL TRAVEL,Organisational Development,CORPORATE TRAVEL MANAGEMENT NORTH LTD,1011708496,1890.95,Week 5 Travel Expenses,BD1 5HQ,ADMIN
FOOD STANDARDS AGENCY - Westminster,FOOD STANDARDS AGENCY - Westminster,2019-02-20,EXP - PURCHASE OF GOODS/SERVICES - RAIL TRAVEL,Regulating our Future,CORPORATE TRAVEL MANAGEMENT NORTH LTD,1011708586,1788.95,Week 6 Travel Expenses,BD1 5HQ,ADMIN
FOOD STANDARDS AGENCY - Westminster,FOOD STANDARDS AGENCY - Westminster,2019-02-12,EXP - PURCHASE OF GOODS/SERVICES - SUBSISTENCE,NFCU Phase 2,CORPORATE TRAVEL MANAGEMENT NORTH LTD,1011708496,1775.96,Week 5 Travel Expenses,BD1 5HQ,PROGRAMME
FOOD STANDARDS AGENCY - Westminster,FOOD STANDARDS AGENCY - Westminster,2019-02-25,EXP - PURCHASE OF GOODS/SERVICES - ICT OUTSOURCING & MAINT/SUPPORT,IT SERVICE DELIVERY,SERVICENOW UK LTD,1011708640,1775.28,SERVICE MANAGEMENT SUITE,TW18 4TW,ADMIN
FOOD STANDARDS AGENCY - Westminster,FOOD STANDARDS AGENCY - Westminster,2019-02-20,EXP - PURCHASE OF GOODS/SERVICES - SUBSISTENCE,Non Meat Field Ops,CORPORATE TRAVEL MANAGEMENT NORTH LTD,1011708586,1764.81,Week 6 Travel Expenses,BD1 5HQ,PROGRAMME
FOOD STANDARDS AGENCY - Westminster,FOOD STANDARDS AGENCY - Westminster,2019-02-12,EXP - PURCHASE OF GOODS/SERVICES - RAIL TRAVEL,Corporate Support Unit,CORPORATE TRAVEL MANAGEMENT NORTH LTD,1011708496,1702.40,Week 5 Travel Expenses,BD1 5HQ,ADMIN
FOOD STANDARDS AGENCY - Westminster,FOOD STANDARDS AGENCY - Westminster,2019-02-08,EXP - SHORT-TERM CONTRACT & AGENCY STAFF - FULL COST,Imports & Exports Team (Admin),ALEXANDER MANN SOLUTIONS LTD-2WM,1011708475,1619.52,"TEMPORARY STAFF											",EC2N 3AQ,ADMIN
FOOD STANDARDS AGENCY - Westminster,FOOD STANDARDS AGENCY - Westminster,2019-02-26,EXP - PURCHASE OF GOODS/SERVICES - SUBSISTENCE,NFCU Phase 2,CORPORATE TRAVEL MANAGEMENT NORTH LTD,1011708650,1613.37,Week 7 Travel Expenses,BD1 5HQ,PROGRAMME
FOOD STANDARDS AGENCY - Westminster,FOOD STANDARDS AGENCY - Westminster,2019-02-05,EXP - PURCHASE OF GOODS/SERVICES - RAIL TRAVEL,Corporate Support Unit,CORPORATE TRAVEL MANAGEMENT NORTH LTD,1011708405,1607.75,Week 4 Travel Expenses,BD1 5HQ,ADMIN
FOOD STANDARDS AGENCY - Westminster,FOOD STANDARDS AGENCY - Westminster,2019-02-20,EXP - PURCHASE OF GOODS/SERVICES - RAIL TRAVEL,Corporate Support Unit,CORPORATE TRAVEL MANAGEMENT NORTH LTD,1011708586,1586.10,Week 6 Travel Expenses,BD1 5HQ,ADMIN
FOOD STANDARDS AGENCY - Westminster,FOOD STANDARDS AGENCY - Westminster,2019-02-13,EXP - PURCHASE OF GOODS/SERVICES - OTHER FACILITIES COSTS  - MEETING ROOM HIRE,SCIENTIFIC METHODS AND LABORATORY POLICY,CALDER CONFERENCES LTD,1011708520,1586.04,FSA Conference spend Nov 18 onwards,LS16 6RF,ADMIN
FOOD STANDARDS AGENCY - Westminster,FOOD STANDARDS AGENCY - Westminster,2019-02-12,EXP - PURCHASE OF GOODS/SERVICES - RAIL TRAVEL,Operations Assurance ,CORPORATE TRAVEL MANAGEMENT NORTH LTD,1011708496,1585.45,Week 5 Travel Expenses,BD1 5HQ,PROGRAMME
FOOD STANDARDS AGENCY - Westminster,FOOD STANDARDS AGENCY - Westminster,2019-02-05,EXP - PURCHASE OF GOODS/SERVICES - SUBSISTENCE,Non Meat Field Ops,CORPORATE TRAVEL MANAGEMENT NORTH LTD,1011708405,1585.15,Week 4 Travel Expenses,BD1 5HQ,PROGRAMME
FOOD STANDARDS AGENCY - Westminster,FOOD STANDARDS AGENCY - Westminster,2019-02-26,EXP - PURCHASE OF GOODS/SERVICES - RAIL TRAVEL,Operations Assurance ,CORPORATE TRAVEL MANAGEMENT NORTH LTD,1011708650,1565.40,Week 7 Travel Expenses,BD1 5HQ,PROGRAMME
FOOD STANDARDS AGENCY - Westminster,FOOD STANDARDS AGENCY - Westminster,2019-02-12,EXP - PURCHASE OF GOODS/SERVICES - RAIL TRAVEL,Regulating our Future,CORPORATE TRAVEL MANAGEMENT NORTH LTD,1011708496,1553.55,Week 5 Travel Expenses,BD1 5HQ,ADMIN
FOOD STANDARDS AGENCY - Westminster,FOOD STANDARDS AGENCY - Westminster,2019-02-26,EXP - PURCHASE OF GOODS/SERVICES - RAIL TRAVEL,Organisational Development,CORPORATE TRAVEL MANAGEMENT NORTH LTD,1011708650,1532.55,Week 7 Travel Expenses,BD1 5HQ,ADMIN
FOOD STANDARDS AGENCY - Westminster,FOOD STANDARDS AGENCY - Westminster,2019-02-12,EXP - PURCHASE OF GOODS/SERVICES - SUBSISTENCE,Corporate Support Unit,CORPORATE TRAVEL MANAGEMENT NORTH LTD,1011708496,1443.10,Week 5 Travel Expenses,BD1 5HQ,ADMIN
FOOD STANDARDS AGENCY - Westminster,FOOD STANDARDS AGENCY - Westminster,2019-02-20,EXP - PURCHASE OF GOODS/SERVICES - RAIL TRAVEL,Regulatory Delivery,CORPORATE TRAVEL MANAGEMENT NORTH LTD,1011708586,1271.55,Week 6 Travel Expenses,BD1 5HQ,ADMIN
FOOD STANDARDS AGENCY - Westminster,FOOD STANDARDS AGENCY - Westminster,2019-02-05,EXP - PURCHASE OF GOODS/SERVICES - RAIL TRAVEL,NFCU Phase 2,CORPORATE TRAVEL MANAGEMENT NORTH LTD,1011708405,1215.70,Week 4 Travel Expenses,BD1 5HQ,PROGRAMME
FOOD STANDARDS AGENCY - Westminster,FOOD STANDARDS AGENCY - Westminster,2019-02-26,EXP - PURCHASE OF GOODS/SERVICES - SUBSISTENCE,Corporate Support Unit,CORPORATE TRAVEL MANAGEMENT NORTH LTD,1011708650,1213.70,Week 7 Travel Expenses,BD1 5HQ,ADMIN
FOOD STANDARDS AGENCY - Westminster,FOOD STANDARDS AGENCY - Westminster,2019-02-05,EXP - PURCHASE OF GOODS/SERVICES - RAIL TRAVEL,Operations Assurance ,CORPORATE TRAVEL MANAGEMENT NORTH LTD,1011708405,1168.05,Week 4 Travel Expenses,BD1 5HQ,PROGRAMME
FOOD STANDARDS AGENCY - Westminster,FOOD STANDARDS AGENCY - Westminster,2019-02-20,EXP - PURCHASE OF GOODS/SERVICES - RAIL TRAVEL,Organisational Development,CORPORATE TRAVEL MANAGEMENT NORTH LTD,1011708586,1166.10,Week 6 Travel Expenses,BD1 5HQ,ADMIN
FOOD STANDARDS AGENCY - Westminster,FOOD STANDARDS AGENCY - Westminster,2019-02-05,EXP - PURCHASE OF GOODS/SERVICES - SUBSISTENCE,NFCU Phase 2,CORPORATE TRAVEL MANAGEMENT NORTH LTD,1011708405,1100.35,Week 4 Travel Expenses,BD1 5HQ,PROGRAMME
FOOD STANDARDS AGENCY - Westminster,FOOD STANDARDS AGENCY - Westminster,2019-02-05,EXP - PURCHASE OF GOODS/SERVICES - SUBSISTENCE,Regulatory Delivery,CORPORATE TRAVEL MANAGEMENT NORTH LTD,1011708405,1067.58,Week 4 Travel Expenses,BD1 5HQ,ADMIN
FOOD STANDARDS AGENCY - Westminster,FOOD STANDARDS AGENCY - Westminster,2019-02-12,EXP - PURCHASE OF GOODS/SERVICES - SUBSISTENCE,Operational Delivery,CORPORATE TRAVEL MANAGEMENT NORTH LTD,1011708496,1019.75,Week 5 Travel Expenses,BD1 5HQ,PROGRAMME
FOOD STANDARDS AGENCY - Westminster,FOOD STANDARDS AGENCY - Westminster,2019-02-26,EXP - PURCHASE OF GOODS/SERVICES - RAIL TRAVEL,Non Meat Field Ops,CORPORATE TRAVEL MANAGEMENT NORTH LTD,1011708650,1000.96,Week 7 Travel Expenses,BD1 5HQ,PROGRAMME
FOOD STANDARDS AGENCY - Westminster,FOOD STANDARDS AGENCY - Westminster,2019-02-05,EXP - PURCHASE OF GOODS/SERVICES - SUBSISTENCE,Regulating our Future,CORPORATE TRAVEL MANAGEMENT NORTH LTD,1011708405,993.55,Week 4 Travel Expenses,BD1 5HQ,ADMIN
FOOD STANDARDS AGENCY - Westminster,FOOD STANDARDS AGENCY - Westminster,2019-02-05,EXP - PURCHASE OF GOODS/SERVICES - RAIL TRAVEL,Organisational Development,CORPORATE TRAVEL MANAGEMENT NORTH LTD,1011708405,985.00,Week 4 Travel Expenses,BD1 5HQ,ADMIN
FOOD STANDARDS AGENCY - Westminster,FOOD STANDARDS AGENCY - Westminster,2019-02-26,EXP - PURCHASE OF GOODS/SERVICES - RAIL TRAVEL,Regulating our Future,CORPORATE TRAVEL MANAGEMENT NORTH LTD,1011708650,950.25,Week 7 Travel Expenses,BD1 5HQ,ADMIN
FOOD STANDARDS AGENCY - Westminster,FOOD STANDARDS AGENCY - Westminster,2019-02-13,EXP - PURCHASE OF GOODS/SERVICES - OTHER FACILITIES COSTS  - MEETING ROOM HIRE,Wales and West 2 (Wales),CALDER CONFERENCES LTD,1011708520,936.67,FSA Conference spend Nov 18 onwards,LS16 6RF,PROGRAMME
FOOD STANDARDS AGENCY - Westminster,FOOD STANDARDS AGENCY - Westminster,2019-02-13,EXP - PURCHASE OF GOODS/SERVICES - OTHER FACILITIES COSTS - MEETING ROOM HIRE,COMMS,LEWIS LIVE LTD,1011708519,935.00,Lewis Live - FSA Management Conference additional charges due to external speakers,KT1 2SZ,ADMIN
FOOD STANDARDS AGENCY - Westminster,FOOD STANDARDS AGENCY - Westminster,2019-02-12,EXP - PURCHASE OF GOODS/SERVICES - RAIL TRAVEL,Regulatory Delivery,CORPORATE TRAVEL MANAGEMENT NORTH LTD,1011708496,926.01,Week 5 Travel Expenses,BD1 5HQ,ADMIN
FOOD STANDARDS AGENCY - Westminster,FOOD STANDARDS AGENCY - Westminster,2019-02-20,EXP - PURCHASE OF GOODS/SERVICES - SUBSISTENCE,Operations Assurance ,CORPORATE TRAVEL MANAGEMENT NORTH LTD,1011708586,924.34,Week 6 Travel Expenses,BD1 5HQ,PROGRAMME
FOOD STANDARDS AGENCY - Westminster,FOOD STANDARDS AGENCY - Westminster,2019-02-20,EXP - PURCHASE OF GOODS/SERVICES - SUBSISTENCE,Regulatory Delivery,CORPORATE TRAVEL MANAGEMENT NORTH LTD,1011708586,917.85,Week 6 Travel Expenses,BD1 5HQ,ADMIN
FOOD STANDARDS AGENCY - Westminster,FOOD STANDARDS AGENCY - Westminster,2019-02-05,EXP - PURCHASE OF GOODS/SERVICES - RAIL TRAVEL,Regulatory Delivery,CORPORATE TRAVEL MANAGEMENT NORTH LTD,1011708405,910.91,Week 4 Travel Expenses,BD1 5HQ,ADMIN
FOOD STANDARDS AGENCY - Westminster,FOOD STANDARDS AGENCY - Westminster,2019-02-12,EXP - PURCHASE OF GOODS/SERVICES - SUBSISTENCE,Regulatory Delivery,CORPORATE TRAVEL MANAGEMENT NORTH LTD,1011708496,904.90,Week 5 Travel Expenses,BD1 5HQ,ADMIN
FOOD STANDARDS AGENCY - Westminster,FOOD STANDARDS AGENCY - Westminster,2019-02-20,EXP - PURCHASE OF GOODS/SERVICES - SUBSISTENCE,NFCU Phase 2,CORPORATE TRAVEL MANAGEMENT NORTH LTD,1011708586,889.05,Week 6 Travel Expenses,BD1 5HQ,PROGRAMME
FOOD STANDARDS AGENCY - Westminster,FOOD STANDARDS AGENCY - Westminster,2019-02-12,EXP - PURCHASE OF GOODS/SERVICES - RAIL TRAVEL,Comms Directors Office,CORPORATE TRAVEL MANAGEMENT NORTH LTD,1011708496,871.70,Week 5 Travel Expenses,BD1 5HQ,ADMIN
FOOD STANDARDS AGENCY - Westminster,FOOD STANDARDS AGENCY - Westminster,2019-02-26,EXP - PURCHASE OF GOODS/SERVICES -  FOREIGN AIR TRAVEL,Chemical Contaminants and Residues,CORPORATE TRAVEL MANAGEMENT NORTH LTD,1011708650,865.00,Week 7 Travel Expenses,BD1 5HQ,ADMIN
FOOD STANDARDS AGENCY - Westminster,FOOD STANDARDS AGENCY - Westminster,2019-02-05,EXP - PURCHASE OF GOODS/SERVICES - SUBSISTENCE,Corporate Support Unit,CORPORATE TRAVEL MANAGEMENT NORTH LTD,1011708405,860.88,Week 4 Travel Expenses,BD1 5HQ,ADMIN
FOOD STANDARDS AGENCY - Westminster,FOOD STANDARDS AGENCY - Westminster,2019-02-26,EXP - PURCHASE OF GOODS/SERVICES - RAIL TRAVEL,IT Service Delivery,CORPORATE TRAVEL MANAGEMENT NORTH LTD,1011708650,843.80,Week 7 Travel Expenses,BD1 5HQ,ADMIN
FOOD STANDARDS AGENCY - Westminster,FOOD STANDARDS AGENCY - Westminster,2019-02-12,EXP - PURCHASE OF GOODS/SERVICES - RAIL TRAVEL,Planning and Performance,CORPORATE TRAVEL MANAGEMENT NORTH LTD,1011708496,841.50,Week 5 Travel Expenses,BD1 5HQ,ADMIN
FOOD STANDARDS AGENCY - Westminster,FOOD STANDARDS AGENCY - Westminster,2019-02-05,EXP - PURCHASE OF GOODS/SERVICES - SUBSISTENCE,Digital,CORPORATE TRAVEL MANAGEMENT NORTH LTD,1011708405,825.85,Week 4 Travel Expenses,BD1 5HQ,ADMIN
FOOD STANDARDS AGENCY - Westminster,FOOD STANDARDS AGENCY - Westminster,2019-02-26,EXP - PURCHASE OF GOODS/SERVICES - RAIL TRAVEL,Food Crime Unit - Prog,CORPORATE TRAVEL MANAGEMENT NORTH LTD,1011708650,823.95,Week 7 Travel Expenses,BD1 5HQ,PROGRAMME
FOOD STANDARDS AGENCY - Westminster,FOOD STANDARDS AGENCY - Westminster,2019-02-22,EXP - SHORT-TERM CONTRACT & AGENCY STAFF - FULL COST,Procurement,ALEXANDER MANN SOLUTIONS LTD-2WM,1011708611,818.09,TEMPORARY STAFF,EC2N 3AQ,ADMIN
FOOD STANDARDS AGENCY - Westminster,FOOD STANDARDS AGENCY - Westminster,2019-02-12,EXP - PURCHASE OF GOODS/SERVICES - RAIL TRAVEL,Food Incidents & Resilience - Prog,CORPORATE TRAVEL MANAGEMENT NORTH LTD,1011708496,806.95,Week 5 Travel Expenses,BD1 5HQ,PROGRAMME
FOOD STANDARDS AGENCY - Westminster,FOOD STANDARDS AGENCY - Westminster,2019-02-26,EXP - PURCHASE OF GOODS/SERVICES - SUBSISTENCE,Operational Delivery,CORPORATE TRAVEL MANAGEMENT NORTH LTD,1011708650,804.88,Week 7 Travel Expenses,BD1 5HQ,PROGRAMME
FOOD STANDARDS AGENCY - Westminster,FOOD STANDARDS AGENCY - Westminster,2019-02-26,EXP - PURCHASE OF GOODS/SERVICES - SUBSISTENCE,Regulatory & International,CORPORATE TRAVEL MANAGEMENT NORTH LTD,1011708650,798.92,Week 7 Travel Expenses,BD1 5HQ,ADMIN
FOOD STANDARDS AGENCY - Westminster,FOOD STANDARDS AGENCY - Westminster,2019-02-26,EXP - PURCHASE OF GOODS/SERVICES - SUBSISTENCE,Operations Assurance ,CORPORATE TRAVEL MANAGEMENT NORTH LTD,1011708650,794.10,Week 7 Travel Expenses,BD1 5HQ,PROGRAMME
FOOD STANDARDS AGENCY - Westminster,FOOD STANDARDS AGENCY - Westminster,2019-02-12,EXP - PURCHASE OF GOODS/SERVICES - SUBSISTENCE,Comms Directors Office,CORPORATE TRAVEL MANAGEMENT NORTH LTD,1011708496,786.60,Week 5 Travel Expenses,BD1 5HQ,ADMIN
FOOD STANDARDS AGENCY - Westminster,FOOD STANDARDS AGENCY - Westminster,2019-02-20,EXP - PURCHASE OF GOODS/SERVICES - SUBSISTENCE,Operational Delivery,CORPORATE TRAVEL MANAGEMENT NORTH LTD,1011708586,780.80,Week 6 Travel Expenses,BD1 5HQ,PROGRAMME
FOOD STANDARDS AGENCY - Westminster,FOOD STANDARDS AGENCY - Westminster,2019-02-12,EXP - PURCHASE OF GOODS/SERVICES - RAIL TRAVEL,IT Information & Knowledge Management,CORPORATE TRAVEL MANAGEMENT NORTH LTD,1011708496,777.90,Week 5 Travel Expenses,BD1 5HQ,ADMIN
FOOD STANDARDS AGENCY - Westminster,FOOD STANDARDS AGENCY - Westminster,2019-02-20,EXP - PURCHASE OF GOODS/SERVICES - RAIL TRAVEL,Operations Assurance ,CORPORATE TRAVEL MANAGEMENT NORTH LTD,1011708586,773.00,Week 6 Travel Expenses,BD1 5HQ,PROGRAMME
FOOD STANDARDS AGENCY - Westminster,FOOD STANDARDS AGENCY - Westminster,2019-02-13,EXP - PURCHASE OF GOODS/SERVICES - OTHER FACILITIES COSTS  - MEETING ROOM HIRE,Operations Assurance ,CALDER CONFERENCES LTD,1011708520,756.67,FSA Conference spend Nov 18 onwards,LS16 6RF,PROGRAMME
FOOD STANDARDS AGENCY - Westminster,FOOD STANDARDS AGENCY - Westminster,2019-02-12,EXP - PURCHASE OF GOODS/SERVICES - SUBSISTENCE,Operations Assurance ,CORPORATE TRAVEL MANAGEMENT NORTH LTD,1011708496,754.40,Week 5 Travel Expenses,BD1 5HQ,PROGRAMME
FOOD STANDARDS AGENCY - Westminster,FOOD STANDARDS AGENCY - Westminster,2019-02-05,EXP - PURCHASE OF GOODS/SERVICES - RAIL TRAVEL,Wales and West 4 ,CORPORATE TRAVEL MANAGEMENT NORTH LTD,1011708405,749.80,Week 4 Travel Expenses,BD1 5HQ,PROGRAMME
FOOD STANDARDS AGENCY - Westminster,FOOD STANDARDS AGENCY - Westminster,2019-02-26,EXP - PURCHASE OF GOODS/SERVICES - RAIL TRAVEL,Regulatory Delivery,CORPORATE TRAVEL MANAGEMENT NORTH LTD,1011708650,749.30,Week 7 Travel Expenses,BD1 5HQ,ADMIN
FOOD STANDARDS AGENCY - Westminster,FOOD STANDARDS AGENCY - Westminster,2019-02-05,EXP - PURCHASE OF GOODS/SERVICES - SUBSISTENCE,Organisational Development,CORPORATE TRAVEL MANAGEMENT NORTH LTD,1011708405,741.65,Week 4 Travel Expenses,BD1 5HQ,ADMIN
FOOD STANDARDS AGENCY - Westminster,FOOD STANDARDS AGENCY - Westminster,2019-02-12,EXP - PURCHASE OF GOODS/SERVICES - RAIL TRAVEL,Regulatory & International,CORPORATE TRAVEL MANAGEMENT NORTH LTD,1011708496,740.50,Week 5 Travel Expenses,BD1 5HQ,ADMIN
FOOD STANDARDS AGENCY - Westminster,FOOD STANDARDS AGENCY - Westminster,2019-02-20,EXP - PURCHASE OF GOODS/SERVICES - RAIL TRAVEL,IT Information & Knowledge Management,CORPORATE TRAVEL MANAGEMENT NORTH LTD,1011708586,740.05,Week 6 Travel Expenses,BD1 5HQ,ADMIN
FOOD STANDARDS AGENCY - Westminster,FOOD STANDARDS AGENCY - Westminster,2019-02-20,EXP - PURCHASE OF GOODS/SERVICES - RAIL TRAVEL,Chief Scientific Advisors team,CORPORATE TRAVEL MANAGEMENT NORTH LTD,1011708586,732.80,Week 6 Travel Expenses,BD1 5HQ,ADMIN
FOOD STANDARDS AGENCY - Westminster,FOOD STANDARDS AGENCY - Westminster,2019-02-20,EXP - PURCHASE OF GOODS/SERVICES - RAIL TRAVEL,Regulatory & International,CORPORATE TRAVEL MANAGEMENT NORTH LTD,1011708586,730.05,Week 6 Travel Expenses,BD1 5HQ,ADMIN
FOOD STANDARDS AGENCY - Westminster,FOOD STANDARDS AGENCY - Westminster,2019-02-12,EXP - PURCHASE OF GOODS/SERVICES - RAIL TRAVEL,"Novel Foods, GM, Radiological and Feed Additives",CORPORATE TRAVEL MANAGEMENT NORTH LTD,1011708496,728.90,Week 5 Travel Expenses,BD1 5HQ,ADMIN
FOOD STANDARDS AGENCY - Westminster,FOOD STANDARDS AGENCY - Westminster,2019-02-13,EXP - PURCHASE OF GOODS/SERVICES - OTHER FACILITIES COSTS  - MEETING ROOM HIRE,Risk Assessment ? research and development,CALDER CONFERENCES LTD,1011708520,728.00,FSA Conference spend Nov 18 onwards,LS16 6RF,ADMIN
FOOD STANDARDS AGENCY - Westminster,FOOD STANDARDS AGENCY - Westminster,2019-02-12,EXP - PURCHASE OF GOODS/SERVICES - RAIL TRAVEL,North 1,CORPORATE TRAVEL MANAGEMENT NORTH LTD,1011708496,708.25,Week 5 Travel Expenses,BD1 5HQ,PROGRAMME
FOOD STANDARDS AGENCY - Westminster,FOOD STANDARDS AGENCY - Westminster,2019-02-26,EXP - PURCHASE OF GOODS/SERVICES - SUBSISTENCE,Incident Handling and Engagement,CORPORATE TRAVEL MANAGEMENT NORTH LTD,1011708650,700.02,Week 7 Travel Expenses,BD1 5HQ,ADMIN
FOOD STANDARDS AGENCY - Westminster,FOOD STANDARDS AGENCY - Westminster,2019-02-26,EXP - PURCHASE OF GOODS/SERVICES - RAIL TRAVEL,Legal Branch A & Investigations,CORPORATE TRAVEL MANAGEMENT NORTH LTD,1011708650,699.90,Week 7 Travel Expenses,BD1 5HQ,ADMIN
FOOD STANDARDS AGENCY - Westminster,FOOD STANDARDS AGENCY - Westminster,2019-02-05,EXP - PURCHASE OF GOODS/SERVICES - SUBSISTENCE,Operations Assurance ,CORPORATE TRAVEL MANAGEMENT NORTH LTD,1011708405,694.50,Week 4 Travel Expenses,BD1 5HQ,PROGRAMME
FOOD STANDARDS AGENCY - Westminster,FOOD STANDARDS AGENCY - Westminster,2019-02-12,EXP - PURCHASE OF GOODS/SERVICES - RAIL TRAVEL,Digital,CORPORATE TRAVEL MANAGEMENT NORTH LTD,1011708496,684.40,Week 5 Travel Expenses,BD1 5HQ,ADMIN
FOOD STANDARDS AGENCY - Westminster,FOOD STANDARDS AGENCY - Westminster,2019-02-20,EXP - PURCHASE OF GOODS/SERVICES - SUBSISTENCE,Comms Directors Office,CORPORATE TRAVEL MANAGEMENT NORTH LTD,1011708586,683.76,Week 6 Travel Expenses,BD1 5HQ,ADMIN
FOOD STANDARDS AGENCY - Westminster,FOOD STANDARDS AGENCY - Westminster,2019-02-05,EXP - PURCHASE OF GOODS/SERVICES - SUBSISTENCE,"Novel Foods, GM, Radiological and Feed Additives",CORPORATE TRAVEL MANAGEMENT NORTH LTD,1011708405,653.40,Week 4 Travel Expenses,BD1 5HQ,ADMIN
FOOD STANDARDS AGENCY - Westminster,FOOD STANDARDS AGENCY - Westminster,2019-02-12,EXP - PURCHASE OF GOODS/SERVICES - SUBSISTENCE,IT Information & Knowledge Management,CORPORATE TRAVEL MANAGEMENT NORTH LTD,1011708496,652.65,Week 5 Travel Expenses,BD1 5HQ,ADMIN
FOOD STANDARDS AGENCY - Westminster,FOOD STANDARDS AGENCY - Westminster,2019-02-05,EXP - PURCHASE OF GOODS/SERVICES - RAIL TRAVEL,Regulatory & International,CORPORATE TRAVEL MANAGEMENT NORTH LTD,1011708405,651.30,Week 4 Travel Expenses,BD1 5HQ,ADMIN
FOOD STANDARDS AGENCY - Westminster,FOOD STANDARDS AGENCY - Westminster,2019-02-26,EXP - PURCHASE OF GOODS/SERVICES - SUBSISTENCE,Food Crime Unit - Prog,CORPORATE TRAVEL MANAGEMENT NORTH LTD,1011708650,647.13,Week 7 Travel Expenses,BD1 5HQ,PROGRAMME
FOOD STANDARDS AGENCY - Westminster,FOOD STANDARDS AGENCY - Westminster,2019-02-26,EXP - PURCHASE OF GOODS/SERVICES - RAIL TRAVEL,FINANCE ,CORPORATE TRAVEL MANAGEMENT NORTH LTD,1011708650,646.65,Week 7 Travel Expenses,BD1 5HQ,ADMIN
FOOD STANDARDS AGENCY - Westminster,FOOD STANDARDS AGENCY - Westminster,2019-02-26,EXP - PURCHASE OF GOODS/SERVICES - RAIL TRAVEL,Comms Directors Office,CORPORATE TRAVEL MANAGEMENT NORTH LTD,1011708650,645.20,Week 7 Travel Expenses,BD1 5HQ,ADMIN
FOOD STANDARDS AGENCY - Westminster,FOOD STANDARDS AGENCY - Westminster,2019-02-12,EXP - PURCHASE OF GOODS/SERVICES - RAIL TRAVEL,FINANCE ,CORPORATE TRAVEL MANAGEMENT NORTH LTD,1011708496,642.55,Week 5 Travel Expenses,BD1 5HQ,ADMIN
FOOD STANDARDS AGENCY - Westminster,FOOD STANDARDS AGENCY - Westminster,2019-02-26,EXP - PURCHASE OF GOODS/SERVICES - SUBSISTENCE,Non Meat Field Ops,CORPORATE TRAVEL MANAGEMENT NORTH LTD,1011708650,641.30,Week 7 Travel Expenses,BD1 5HQ,PROGRAMME
FOOD STANDARDS AGENCY - Westminster,FOOD STANDARDS AGENCY - Westminster,2019-02-20,EXP - PURCHASE OF GOODS/SERVICES - AIR TRAVEL,Organisational Development,CORPORATE TRAVEL MANAGEMENT NORTH LTD,1011708586,630.81,Week 6 Travel Expenses,BD1 5HQ,ADMIN
FOOD STANDARDS AGENCY - Westminster,FOOD STANDARDS AGENCY - Westminster,2019-02-26,EXP - PURCHASE OF GOODS/SERVICES - RAIL TRAVEL,Regulatory & International,CORPORATE TRAVEL MANAGEMENT NORTH LTD,1011708650,626.60,Week 7 Travel Expenses,BD1 5HQ,ADMIN
FOOD STANDARDS AGENCY - Westminster,FOOD STANDARDS AGENCY - Westminster,2019-02-12,EXP - PURCHASE OF GOODS/SERVICES - AIR TRAVEL,Regulating our Future,CORPORATE TRAVEL MANAGEMENT NORTH LTD,1011708496,609.72,Week 5 Travel Expenses,BD1 5HQ,ADMIN
FOOD STANDARDS AGENCY - Westminster,FOOD STANDARDS AGENCY - Westminster,2019-02-20,EXP - PURCHASE OF GOODS/SERVICES - RAIL TRAVEL,North 1,CORPORATE TRAVEL MANAGEMENT NORTH LTD,1011708586,595.90,Week 6 Travel Expenses,BD1 5HQ,PROGRAMME
FOOD STANDARDS AGENCY - Westminster,FOOD STANDARDS AGENCY - Westminster,2019-02-05,EXP - PURCHASE OF GOODS/SERVICES - SUBSISTENCE,Legal Branch A & Investigations,CORPORATE TRAVEL MANAGEMENT NORTH LTD,1011708405,595.03,Week 4 Travel Expenses,BD1 5HQ,ADMIN
FOOD STANDARDS AGENCY - Westminster,FOOD STANDARDS AGENCY - Westminster,2019-02-26,EXP - PURCHASE OF GOODS/SERVICES - RAIL TRAVEL,"Novel Foods, GM, Radiological and Feed Additives",CORPORATE TRAVEL MANAGEMENT NORTH LTD,1011708650,593.40,Week 7 Travel Expenses,BD1 5HQ,ADMIN
FOOD STANDARDS AGENCY - Westminster,FOOD STANDARDS AGENCY - Westminster,2019-02-08,EXP - SHORT-TERM CONTRACT & AGENCY STAFF - FULL COST,FINANCE,ALEXANDER MANN SOLUTIONS LTD-2WM,1011708475,589.63,"TEMPORARY STAFF											",EC2N 3AQ,ADMIN
FOOD STANDARDS AGENCY - Westminster,FOOD STANDARDS AGENCY - Westminster,2019-02-22,EXP - SHORT-TERM CONTRACT & AGENCY STAFF - FULL COST,FINANCE,ALEXANDER MANN SOLUTIONS LTD-2WM,1011708611,589.63,TEMPORARY STAFF,EC2N 3AQ,ADMIN
FOOD STANDARDS AGENCY - Westminster,FOOD STANDARDS AGENCY - Westminster,2019-02-26,EXP - PURCHASE OF GOODS/SERVICES - RAIL TRAVEL,Food Incidents & Resilience - Prog,CORPORATE TRAVEL MANAGEMENT NORTH LTD,1011708650,588.10,Week 7 Travel Expenses,BD1 5HQ,PROGRAMME
FOOD STANDARDS AGENCY - Westminster,FOOD STANDARDS AGENCY - Westminster,2019-02-20,EXP - PURCHASE OF GOODS/SERVICES - SUBSISTENCE,Internal Audit,CORPORATE TRAVEL MANAGEMENT NORTH LTD,1011708586,574.54,Week 6 Travel Expenses,BD1 5HQ,ADMIN
FOOD STANDARDS AGENCY - Westminster,FOOD STANDARDS AGENCY - Westminster,2019-02-26,EXP - PURCHASE OF GOODS/SERVICES - RAIL TRAVEL,Corporate Support Unit,CORPORATE TRAVEL MANAGEMENT NORTH LTD,1011708650,573.10,Week 7 Travel Expenses,BD1 5HQ,ADMIN
FOOD STANDARDS AGENCY - Westminster,FOOD STANDARDS AGENCY - Westminster,2019-02-05,EXP - PURCHASE OF GOODS/SERVICES - RAIL TRAVEL,Procurement,CORPORATE TRAVEL MANAGEMENT NORTH LTD,1011708405,573.05,Week 4 Travel Expenses,BD1 5HQ,ADMIN
FOOD STANDARDS AGENCY - Westminster,FOOD STANDARDS AGENCY - Westminster,2019-02-05,EXP - PURCHASE OF GOODS/SERVICES - RAIL TRAVEL,Legal Branch A & Investigations,CORPORATE TRAVEL MANAGEMENT NORTH LTD,1011708405,569.75,Week 4 Travel Expenses,BD1 5HQ,ADMIN
FOOD STANDARDS AGENCY - Westminster,FOOD STANDARDS AGENCY - Westminster,2019-02-12,EXP - PURCHASE OF GOODS/SERVICES - SUBSISTENCE,Internal Audit,CORPORATE TRAVEL MANAGEMENT NORTH LTD,1011708496,563.72,Week 5 Travel Expenses,BD1 5HQ,ADMIN
FOOD STANDARDS AGENCY - Westminster,FOOD STANDARDS AGENCY - Westminster,2019-02-20,EXP - PURCHASE OF GOODS/SERVICES - RAIL TRAVEL,Food Incidents & Resilience - Prog,CORPORATE TRAVEL MANAGEMENT NORTH LTD,1011708586,562.40,Week 6 Travel Expenses,BD1 5HQ,PROGRAMME
FOOD STANDARDS AGENCY - Westminster,FOOD STANDARDS AGENCY - Westminster,2019-02-26,EXP - PURCHASE OF GOODS/SERVICES - RAIL TRAVEL,East 4,CORPORATE TRAVEL MANAGEMENT NORTH LTD,1011708650,561.80,Week 7 Travel Expenses,BD1 5HQ,PROGRAMME
FOOD STANDARDS AGENCY - Westminster,FOOD STANDARDS AGENCY - Westminster,2019-02-26,EXP - PURCHASE OF GOODS/SERVICES - SUBSISTENCE,Resilience - Admin,CORPORATE TRAVEL MANAGEMENT NORTH LTD,1011708650,556.20,Week 7 Travel Expenses,BD1 5HQ,ADMIN
FOOD STANDARDS AGENCY - Westminster,FOOD STANDARDS AGENCY - Westminster,2019-02-26,EXP - PURCHASE OF GOODS/SERVICES - SUBSISTENCE,"Novel Foods, GM, Radiological and Feed Additives",CORPORATE TRAVEL MANAGEMENT NORTH LTD,1011708650,546.90,Week 7 Travel Expenses,BD1 5HQ,ADMIN
FOOD STANDARDS AGENCY - Westminster,FOOD STANDARDS AGENCY - Westminster,2019-02-12,EXP - PURCHASE OF GOODS/SERVICES - SUBSISTENCE,Food Incidents & Resilience - Prog,CORPORATE TRAVEL MANAGEMENT NORTH LTD,1011708496,521.55,Week 5 Travel Expenses,BD1 5HQ,PROGRAMME
FOOD STANDARDS AGENCY - Westminster,FOOD STANDARDS AGENCY - Westminster,2019-02-26,EXP - PURCHASE OF GOODS/SERVICES - SUBSISTENCE,IT Information & Knowledge Management,CORPORATE TRAVEL MANAGEMENT NORTH LTD,1011708650,515.00,Week 7 Travel Expenses,BD1 5HQ,ADMIN
FOOD STANDARDS AGENCY - Westminster,FOOD STANDARDS AGENCY - Westminster,2019-02-05,EXP - PURCHASE OF GOODS/SERVICES - RAIL TRAVEL,Digital,CORPORATE TRAVEL MANAGEMENT NORTH LTD,1011708405,513.10,Week 4 Travel Expenses,BD1 5HQ,ADMIN
FOOD STANDARDS AGENCY - Westminster,FOOD STANDARDS AGENCY - Westminster,2019-02-26,EXP - PURCHASE OF GOODS/SERVICES - RAIL TRAVEL,Chief Scientific Advisors team,CORPORATE TRAVEL MANAGEMENT NORTH LTD,1011708650,509.90,Week 7 Travel Expenses,BD1 5HQ,ADMIN
FOOD STANDARDS AGENCY - Westminster,FOOD STANDARDS AGENCY - Westminster,2019-02-26,EXP - PURCHASE OF GOODS/SERVICES - AIR TRAVEL,Comms Directors Office,CORPORATE TRAVEL MANAGEMENT NORTH LTD,1011708650,503.54,Week 7 Travel Expenses,BD1 5HQ,ADMIN
FOOD STANDARDS AGENCY - Westminster,FOOD STANDARDS AGENCY - Westminster,2019-02-26,EXP - PURCHASE OF GOODS/SERVICES - RAIL TRAVEL,Wales and West 3 ,CORPORATE TRAVEL MANAGEMENT NORTH LTD,1011708650,498.50,Week 7 Travel Expenses,BD1 5HQ,PROGRAMME
FOOD STANDARDS AGENCY - Westminster,FOOD STANDARDS AGENCY - Westminster,2019-02-26,EXP - PURCHASE OF GOODS/SERVICES - SUBSISTENCE,Organisational Development,CORPORATE TRAVEL MANAGEMENT NORTH LTD,1011708650,492.70,Week 7 Travel Expenses,BD1 5HQ,ADMIN
FOOD STANDARDS AGENCY - Westminster,FOOD STANDARDS AGENCY - Westminster,2019-02-12,EXP - PURCHASE OF GOODS/SERVICES - SUBSISTENCE,Wales and West 4 ,CORPORATE TRAVEL MANAGEMENT NORTH LTD,1011708496,484.85,Week 5 Travel Expenses,BD1 5HQ,PROGRAMME
FOOD STANDARDS AGENCY - Westminster,FOOD STANDARDS AGENCY - Westminster,2019-02-12,EXP - PURCHASE OF GOODS/SERVICES - RAIL TRAVEL,IT Service Delivery,CORPORATE TRAVEL MANAGEMENT NORTH LTD,1011708496,481.30,Week 5 Travel Expenses,BD1 5HQ,ADMIN
FOOD STANDARDS AGENCY - Westminster,FOOD STANDARDS AGENCY - Westminster,2019-02-05,EXP - PURCHASE OF GOODS/SERVICES - SUBSISTENCE,Regulatory & International,CORPORATE TRAVEL MANAGEMENT NORTH LTD,1011708405,479.56,Week 4 Travel Expenses,BD1 5HQ,ADMIN
FOOD STANDARDS AGENCY - Westminster,FOOD STANDARDS AGENCY - Westminster,2019-02-12,EXP - PURCHASE OF GOODS/SERVICES - SUBSISTENCE,Chief Executive & Private Office,CORPORATE TRAVEL MANAGEMENT NORTH LTD,1011708496,471.20,Week 5 Travel Expenses,BD1 5HQ,ADMIN
FOOD STANDARDS AGENCY - Westminster,FOOD STANDARDS AGENCY - Westminster,2019-02-26,EXP - PURCHASE OF GOODS/SERVICES - SUBSISTENCE,Regulatory Delivery,CORPORATE TRAVEL MANAGEMENT NORTH LTD,1011708650,468.60,Week 7 Travel Expenses,BD1 5HQ,ADMIN
FOOD STANDARDS AGENCY - Westminster,FOOD STANDARDS AGENCY - Westminster,2019-02-05,EXP - PURCHASE OF GOODS/SERVICES - SUBSISTENCE,Food Incidents & Resilience - Prog,CORPORATE TRAVEL MANAGEMENT NORTH LTD,1011708405,468.05,Week 4 Travel Expenses,BD1 5HQ,PROGRAMME
FOOD STANDARDS AGENCY - Westminster,FOOD STANDARDS AGENCY - Westminster,2019-02-13,EXP - PURCHASE OF GOODS/SERVICES - OTHER FACILITIES COSTS  - MEETING ROOM HIRE,East 1,CALDER CONFERENCES LTD,1011708520,466.88,FSA Conference spend Nov 18 onwards,LS16 6RF,PROGRAMME
FOOD STANDARDS AGENCY - Westminster,FOOD STANDARDS AGENCY - Westminster,2019-02-20,EXP - PURCHASE OF GOODS/SERVICES - RAIL TRAVEL,Comms Directors Office,CORPORATE TRAVEL MANAGEMENT NORTH LTD,1011708586,466.30,Week 6 Travel Expenses,BD1 5HQ,ADMIN
FOOD STANDARDS AGENCY - Westminster,FOOD STANDARDS AGENCY - Westminster,2019-02-12,EXP - PURCHASE OF GOODS/SERVICES - SUBSISTENCE,Organisational Development,CORPORATE TRAVEL MANAGEMENT NORTH LTD,1011708496,463.45,Week 5 Travel Expenses,BD1 5HQ,ADMIN
FOOD STANDARDS AGENCY - Westminster,FOOD STANDARDS AGENCY - Westminster,2019-02-05,EXP - PURCHASE OF GOODS/SERVICES - SUBSISTENCE,IT Service Delivery,CORPORATE TRAVEL MANAGEMENT NORTH LTD,1011708405,462.40,Week 4 Travel Expenses,BD1 5HQ,ADMIN
FOOD STANDARDS AGENCY - Westminster,FOOD STANDARDS AGENCY - Westminster,2019-02-05,EXP - PURCHASE OF GOODS/SERVICES - RAIL TRAVEL,Non Meat Field Ops,CORPORATE TRAVEL MANAGEMENT NORTH LTD,1011708405,461.90,Week 4 Travel Expenses,BD1 5HQ,PROGRAMME
FOOD STANDARDS AGENCY - Westminster,FOOD STANDARDS AGENCY - Westminster,2019-02-20,EXP - PURCHASE OF GOODS/SERVICES - AIR TRAVEL,Comms Directors Office,CORPORATE TRAVEL MANAGEMENT NORTH LTD,1011708586,450.48,Week 6 Travel Expenses,BD1 5HQ,ADMIN
FOOD STANDARDS AGENCY - Westminster,FOOD STANDARDS AGENCY - Westminster,2019-02-13,EXP - PURCHASE OF GOODS/SERVICES - OTHER FACILITIES COSTS  - MEETING ROOM HIRE,Chief Executive & Private Office,CALDER CONFERENCES LTD,1011708520,449.40,FSA Conference spend Nov 18 onwards,LS16 6RF,ADMIN
FOOD STANDARDS AGENCY - Westminster,FOOD STANDARDS AGENCY - Westminster,2019-02-20,EXP - PURCHASE OF GOODS/SERVICES - RAIL TRAVEL,Wales and West 4 ,CORPORATE TRAVEL MANAGEMENT NORTH LTD,1011708586,436.30,Week 6 Travel Expenses,BD1 5HQ,PROGRAMME
FOOD STANDARDS AGENCY - Westminster,FOOD STANDARDS AGENCY - Westminster,2019-02-13,EXP - PURCHASE OF GOODS/SERVICES - OTHER FACILITIES COSTS  - MEETING ROOM HIRE,Regulatory Delivery,CALDER CONFERENCES LTD,1011708520,428.33,FSA Conference spend Nov 18 onwards,LS16 6RF,ADMIN
FOOD STANDARDS AGENCY - Westminster,FOOD STANDARDS AGENCY - Westminster,2019-02-05,EXP - PURCHASE OF GOODS/SERVICES - SUBSISTENCE,Chair & Deputy Chair,CORPORATE TRAVEL MANAGEMENT NORTH LTD,1011708405,420.50,Week 4 Travel Expenses,BD1 5HQ,ADMIN
FOOD STANDARDS AGENCY - Westminster,FOOD STANDARDS AGENCY - Westminster,2019-02-26,EXP - PURCHASE OF GOODS/SERVICES - SUBSISTENCE,Comms Directors Office,CORPORATE TRAVEL MANAGEMENT NORTH LTD,1011708650,417.30,Week 7 Travel Expenses,BD1 5HQ,ADMIN
FOOD STANDARDS AGENCY - Westminster,FOOD STANDARDS AGENCY - Westminster,2019-02-05,EXP - PURCHASE OF GOODS/SERVICES - RAIL TRAVEL,Resilience - Admin,CORPORATE TRAVEL MANAGEMENT NORTH LTD,1011708405,413.30,Week 4 Travel Expenses,BD1 5HQ,ADMIN
FOOD STANDARDS AGENCY - Westminster,FOOD STANDARDS AGENCY - Westminster,2019-02-12,EXP - PURCHASE OF GOODS/SERVICES - SUBSISTENCE,Regulatory & International,CORPORATE TRAVEL MANAGEMENT NORTH LTD,1011708496,412.35,Week 5 Travel Expenses,BD1 5HQ,ADMIN
FOOD STANDARDS AGENCY - Westminster,FOOD STANDARDS AGENCY - Westminster,2019-02-20,EXP - PURCHASE OF GOODS/SERVICES - SUBSISTENCE,"Food Additives, Flavourings, and Food Contact Materials",CORPORATE TRAVEL MANAGEMENT NORTH LTD,1011708586,409.01,Week 6 Travel Expenses,BD1 5HQ,ADMIN
FOOD STANDARDS AGENCY - Westminster,FOOD STANDARDS AGENCY - Westminster,2019-02-20,EXP - PURCHASE OF GOODS/SERVICES - SUBSISTENCE,Digital,CORPORATE TRAVEL MANAGEMENT NORTH LTD,1011708586,396.60,Week 6 Travel Expenses,BD1 5HQ,ADMIN
FOOD STANDARDS AGENCY - Westminster,FOOD STANDARDS AGENCY - Westminster,2019-02-05,EXP - PURCHASE OF GOODS/SERVICES - RAIL TRAVEL,Food Incidents & Resilience - Prog,CORPORATE TRAVEL MANAGEMENT NORTH LTD,1011708405,392.00,Week 4 Travel Expenses,BD1 5HQ,PROGRAMME
FOOD STANDARDS AGENCY - Westminster,FOOD STANDARDS AGENCY - Westminster,2019-02-26,EXP - PURCHASE OF GOODS/SERVICES - SUBSISTENCE,Chief Scientific Advisors team,CORPORATE TRAVEL MANAGEMENT NORTH LTD,1011708650,391.85,Week 7 Travel Expenses,BD1 5HQ,ADMIN
FOOD STANDARDS AGENCY - Westminster,FOOD STANDARDS AGENCY - Westminster,2019-02-05,EXP - PURCHASE OF GOODS/SERVICES - RAIL TRAVEL,Comms Directors Office,CORPORATE TRAVEL MANAGEMENT NORTH LTD,1011708405,390.60,Week 4 Travel Expenses,BD1 5HQ,ADMIN
FOOD STANDARDS AGENCY - Westminster,FOOD STANDARDS AGENCY - Westminster,2019-02-20,EXP - PURCHASE OF GOODS/SERVICES - SUBSISTENCE,Corporate Support Unit,CORPORATE TRAVEL MANAGEMENT NORTH LTD,1011708586,385.80,Week 6 Travel Expenses,BD1 5HQ,ADMIN
FOOD STANDARDS AGENCY - Westminster,FOOD STANDARDS AGENCY - Westminster,2019-02-26,EXP - PURCHASE OF GOODS/SERVICES - RAIL TRAVEL,Digital,CORPORATE TRAVEL MANAGEMENT NORTH LTD,1011708650,384.15,Week 7 Travel Expenses,BD1 5HQ,ADMIN
FOOD STANDARDS AGENCY - Westminster,FOOD STANDARDS AGENCY - Westminster,2019-02-05,EXP - PURCHASE OF GOODS/SERVICES - RAIL TRAVEL,IT Information & Knowledge Management,CORPORATE TRAVEL MANAGEMENT NORTH LTD,1011708405,382.75,Week 4 Travel Expenses,BD1 5HQ,ADMIN
FOOD STANDARDS AGENCY - Westminster,FOOD STANDARDS AGENCY - Westminster,2019-02-26,EXP - PURCHASE OF GOODS/SERVICES - RAIL TRAVEL,East 1,CORPORATE TRAVEL MANAGEMENT NORTH LTD,1011708650,382.50,Week 7 Travel Expenses,BD1 5HQ,PROGRAMME
FOOD STANDARDS AGENCY - Westminster,FOOD STANDARDS AGENCY - Westminster,2019-02-26,EXP - PURCHASE OF GOODS/SERVICES - RAIL TRAVEL,Resilience - Admin,CORPORATE TRAVEL MANAGEMENT NORTH LTD,1011708650,381.70,Week 7 Travel Expenses,BD1 5HQ,ADMIN
FOOD STANDARDS AGENCY - Westminster,FOOD STANDARDS AGENCY - Westminster,2019-02-20,EXP - PURCHASE OF GOODS/SERVICES - SUBSISTENCE,Risk Assessment - operations,CORPORATE TRAVEL MANAGEMENT NORTH LTD,1011708586,379.70,Week 6 Travel Expenses,BD1 5HQ,ADMIN
FOOD STANDARDS AGENCY - Westminster,FOOD STANDARDS AGENCY - Westminster,2019-02-20,EXP - PURCHASE OF GOODS/SERVICES - SUBSISTENCE,Incident Handling and Engagement,CORPORATE TRAVEL MANAGEMENT NORTH LTD,1011708586,374.29,Week 6 Travel Expenses,BD1 5HQ,ADMIN
FOOD STANDARDS AGENCY - Westminster,FOOD STANDARDS AGENCY - Westminster,2019-02-05,EXP - PURCHASE OF GOODS/SERVICES - RAIL TRAVEL,Chief Scientific Advisors team,CORPORATE TRAVEL MANAGEMENT NORTH LTD,1011708405,373.70,Week 4 Travel Expenses,BD1 5HQ,ADMIN
FOOD STANDARDS AGENCY - Westminster,FOOD STANDARDS AGENCY - Westminster,2019-02-12,EXP - PURCHASE OF GOODS/SERVICES - SUBSISTENCE,IT Service Delivery,CORPORATE TRAVEL MANAGEMENT NORTH LTD,1011708496,369.60,Week 5 Travel Expenses,BD1 5HQ,ADMIN
FOOD STANDARDS AGENCY - Westminster,FOOD STANDARDS AGENCY - Westminster,2019-02-12,EXP - PURCHASE OF GOODS/SERVICES - RAIL TRAVEL,Chief Scientific Advisors team,CORPORATE TRAVEL MANAGEMENT NORTH LTD,1011708496,367.30,Week 5 Travel Expenses,BD1 5HQ,ADMIN
FOOD STANDARDS AGENCY - Westminster,FOOD STANDARDS AGENCY - Westminster,2019-02-12,EXP - PURCHASE OF GOODS/SERVICES - RAIL TRAVEL,East 4,CORPORATE TRAVEL MANAGEMENT NORTH LTD,1011708496,367.05,Week 5 Travel Expenses,BD1 5HQ,PROGRAMME
FOOD STANDARDS AGENCY - Westminster,FOOD STANDARDS AGENCY - Westminster,2019-02-05,EXP - PURCHASE OF GOODS/SERVICES - AIR TRAVEL,Chief Executive & Private Office,CORPORATE TRAVEL MANAGEMENT NORTH LTD,1011708405,366.51,Week 4 Travel Expenses,BD1 5HQ,ADMIN
FOOD STANDARDS AGENCY - Westminster,FOOD STANDARDS AGENCY - Westminster,2019-02-05,EXP - PURCHASE OF GOODS/SERVICES - SUBSISTENCE,Food Crime Unit - Prog,CORPORATE TRAVEL MANAGEMENT NORTH LTD,1011708405,364.00,Week 4 Travel Expenses,BD1 5HQ,PROGRAMME
FOOD STANDARDS AGENCY - Westminster,FOOD STANDARDS AGENCY - Westminster,2019-02-05,EXP - PURCHASE OF GOODS/SERVICES - RAIL TRAVEL,Chemical Contaminants and Residues,CORPORATE TRAVEL MANAGEMENT NORTH LTD,1011708405,353.90,Week 4 Travel Expenses,BD1 5HQ,ADMIN
FOOD STANDARDS AGENCY - Westminster,FOOD STANDARDS AGENCY - Westminster,2019-02-05,EXP - PURCHASE OF GOODS/SERVICES - RAIL TRAVEL,Internal Audit,CORPORATE TRAVEL MANAGEMENT NORTH LTD,1011708405,352.60,Week 4 Travel Expenses,BD1 5HQ,ADMIN
FOOD STANDARDS AGENCY - Westminster,FOOD STANDARDS AGENCY - Westminster,2019-02-05,EXP - PURCHASE OF GOODS/SERVICES - SUBSISTENCE,Resilience - Admin,CORPORATE TRAVEL MANAGEMENT NORTH LTD,1011708405,348.60,Week 4 Travel Expenses,BD1 5HQ,ADMIN
FOOD STANDARDS AGENCY - Westminster,FOOD STANDARDS AGENCY - Westminster,2019-02-05,EXP - PURCHASE OF GOODS/SERVICES - RAIL TRAVEL,Regulating our Future,CORPORATE TRAVEL MANAGEMENT NORTH LTD,1011708405,344.65,Week 4 Travel Expenses,BD1 5HQ,ADMIN
FOOD STANDARDS AGENCY - Westminster,FOOD STANDARDS AGENCY - Westminster,2019-02-05,EXP - PURCHASE OF GOODS/SERVICES - SUBSISTENCE,General Food Hygiene,CORPORATE TRAVEL MANAGEMENT NORTH LTD,1011708405,341.80,Week 4 Travel Expenses,BD1 5HQ,ADMIN
FOOD STANDARDS AGENCY - Westminster,FOOD STANDARDS AGENCY - Westminster,2019-02-05,EXP - PURCHASE OF GOODS/SERVICES - RAIL TRAVEL,North 3,CORPORATE TRAVEL MANAGEMENT NORTH LTD,1011708405,341.50,Week 4 Travel Expenses,BD1 5HQ,PROGRAMME
FOOD STANDARDS AGENCY - Westminster,FOOD STANDARDS AGENCY - Westminster,2019-02-05,EXP - PURCHASE OF GOODS/SERVICES - AIR TRAVEL,Organisational Development,CORPORATE TRAVEL MANAGEMENT NORTH LTD,1011708405,337.38,Week 4 Travel Expenses,BD1 5HQ,ADMIN
FOOD STANDARDS AGENCY - Westminster,FOOD STANDARDS AGENCY - Westminster,2019-02-26,EXP - PURCHASE OF GOODS/SERVICES - RAIL TRAVEL,Internal Audit,CORPORATE TRAVEL MANAGEMENT NORTH LTD,1011708650,336.50,Week 7 Travel Expenses,BD1 5HQ,ADMIN
FOOD STANDARDS AGENCY - Westminster,FOOD STANDARDS AGENCY - Westminster,2019-02-05,EXP - PURCHASE OF GOODS/SERVICES - RAIL TRAVEL,FINANCE ,CORPORATE TRAVEL MANAGEMENT NORTH LTD,1011708405,336.25,Week 4 Travel Expenses,BD1 5HQ,ADMIN
FOOD STANDARDS AGENCY - Westminster,FOOD STANDARDS AGENCY - Westminster,2019-02-05,EXP - PURCHASE OF GOODS/SERVICES - RAIL TRAVEL,Planning and Performance,CORPORATE TRAVEL MANAGEMENT NORTH LTD,1011708405,336.25,Week 4 Travel Expenses,BD1 5HQ,ADMIN
FOOD STANDARDS AGENCY - Westminster,FOOD STANDARDS AGENCY - Westminster,2019-02-12,EXP - PURCHASE OF GOODS/SERVICES - SUBSISTENCE,Legal Branch A & Investigations,CORPORATE TRAVEL MANAGEMENT NORTH LTD,1011708496,330.45,Week 5 Travel Expenses,BD1 5HQ,ADMIN
FOOD STANDARDS AGENCY - Westminster,FOOD STANDARDS AGENCY - Westminster,2019-02-20,EXP - PURCHASE OF GOODS/SERVICES - SUBSISTENCE,Organisational Development,CORPORATE TRAVEL MANAGEMENT NORTH LTD,1011708586,329.20,Week 6 Travel Expenses,BD1 5HQ,ADMIN
FOOD STANDARDS AGENCY - Westminster,FOOD STANDARDS AGENCY - Westminster,2019-02-20,EXP - PURCHASE OF GOODS/SERVICES - SUBSISTENCE,Chief Executive & Private Office,CORPORATE TRAVEL MANAGEMENT NORTH LTD,1011708586,323.60,Week 6 Travel Expenses,BD1 5HQ,ADMIN
FOOD STANDARDS AGENCY - Westminster,FOOD STANDARDS AGENCY - Westminster,2019-02-05,EXP - PURCHASE OF GOODS/SERVICES -  FOREIGN AIR TRAVEL,Chemical Contaminants and Residues,CORPORATE TRAVEL MANAGEMENT NORTH LTD,1011708405,318.00,Week 4 Travel Expenses,BD1 5HQ,ADMIN
FOOD STANDARDS AGENCY - Westminster,FOOD STANDARDS AGENCY - Westminster,2019-02-12,EXP - PURCHASE OF GOODS/SERVICES - SUBSISTENCE,Digital,CORPORATE TRAVEL MANAGEMENT NORTH LTD,1011708496,316.55,Week 5 Travel Expenses,BD1 5HQ,ADMIN
FOOD STANDARDS AGENCY - Westminster,FOOD STANDARDS AGENCY - Westminster,2019-02-12,EXP - PURCHASE OF GOODS/SERVICES - FOREIGN SUBSISTENCE,"Food Additives, Flavourings, and Food Contact Materials",CORPORATE TRAVEL MANAGEMENT NORTH LTD,1011708496,313.90,Week 5 Travel Expenses,BD1 5HQ,ADMIN
FOOD STANDARDS AGENCY - Westminster,FOOD STANDARDS AGENCY - Westminster,2019-02-05,EXP - PURCHASE OF GOODS/SERVICES - RAIL TRAVEL,Programme and project delivery,CORPORATE TRAVEL MANAGEMENT NORTH LTD,1011708405,313.50,Week 4 Travel Expenses,BD1 5HQ,ADMIN
FOOD STANDARDS AGENCY - Westminster,FOOD STANDARDS AGENCY - Westminster,2019-02-12,EXP - PURCHASE OF GOODS/SERVICES - AIR TRAVEL,Comms Directors Office,CORPORATE TRAVEL MANAGEMENT NORTH LTD,1011708496,313.19,Week 5 Travel Expenses,BD1 5HQ,ADMIN
FOOD STANDARDS AGENCY - Westminster,FOOD STANDARDS AGENCY - Westminster,2019-02-05,EXP - PURCHASE OF GOODS/SERVICES - SUBSISTENCE,East 3,CORPORATE TRAVEL MANAGEMENT NORTH LTD,1011708405,312.35,Week 4 Travel Expenses,BD1 5HQ,PROGRAMME
FOOD STANDARDS AGENCY - Westminster,FOOD STANDARDS AGENCY - Westminster,2019-02-26,EXP - PURCHASE OF GOODS/SERVICES - RAIL TRAVEL,Food Crime Unit - Admin,CORPORATE TRAVEL MANAGEMENT NORTH LTD,1011708650,312.30,Week 7 Travel Expenses,BD1 5HQ,ADMIN
FOOD STANDARDS AGENCY - Westminster,FOOD STANDARDS AGENCY - Westminster,2019-02-20,EXP - PURCHASE OF GOODS/SERVICES - RAIL TRAVEL,Non Meat Field Ops,CORPORATE TRAVEL MANAGEMENT NORTH LTD,1011708586,309.90,Week 6 Travel Expenses,BD1 5HQ,PROGRAMME
FOOD STANDARDS AGENCY - Westminster,FOOD STANDARDS AGENCY - Westminster,2019-02-05,EXP - PURCHASE OF GOODS/SERVICES - AIR TRAVEL,Operational Delivery,CORPORATE TRAVEL MANAGEMENT NORTH LTD,1011708405,305.30,Week 4 Travel Expenses,BD1 5HQ,PROGRAMME
FOOD STANDARDS AGENCY - Westminster,FOOD STANDARDS AGENCY - Westminster,2019-02-20,EXP - PURCHASE OF GOODS/SERVICES - RAIL TRAVEL,IT Service Delivery,CORPORATE TRAVEL MANAGEMENT NORTH LTD,1011708586,305.10,Week 6 Travel Expenses,BD1 5HQ,ADMIN
FOOD STANDARDS AGENCY - Westminster,FOOD STANDARDS AGENCY - Westminster,2019-02-26,EXP - PURCHASE OF GOODS/SERVICES - SUBSISTENCE,Regulating our Future,CORPORATE TRAVEL MANAGEMENT NORTH LTD,1011708650,305.10,Week 7 Travel Expenses,BD1 5HQ,ADMIN
FOOD STANDARDS AGENCY - Westminster,FOOD STANDARDS AGENCY - Westminster,2019-02-12,EXP - PURCHASE OF GOODS/SERVICES - RAIL TRAVEL,Chief Executive & Private Office,CORPORATE TRAVEL MANAGEMENT NORTH LTD,1011708496,303.50,Week 5 Travel Expenses,BD1 5HQ,ADMIN
FOOD STANDARDS AGENCY - Westminster,FOOD STANDARDS AGENCY - Westminster,2019-02-05,EXP - PURCHASE OF GOODS/SERVICES - AIR TRAVEL,Comms Directors Office,CORPORATE TRAVEL MANAGEMENT NORTH LTD,1011708405,301.77,Week 4 Travel Expenses,BD1 5HQ,ADMIN
FOOD STANDARDS AGENCY - Westminster,FOOD STANDARDS AGENCY - Westminster,2019-02-20,EXP - PURCHASE OF GOODS/SERVICES - RAIL TRAVEL,East 4,CORPORATE TRAVEL MANAGEMENT NORTH LTD,1011708586,296.40,Week 6 Travel Expenses,BD1 5HQ,PROGRAMME
FOOD STANDARDS AGENCY - Westminster,FOOD STANDARDS AGENCY - Westminster,2019-02-20,EXP - PURCHASE OF GOODS/SERVICES - FOREIGN SUBSISTENCE,IT Information & Knowledge Management,CORPORATE TRAVEL MANAGEMENT NORTH LTD,1011708586,294.64,Week 6 Travel Expenses,BD1 5HQ,ADMIN
FOOD STANDARDS AGENCY - Westminster,FOOD STANDARDS AGENCY - Westminster,2019-02-05,EXP - PURCHASE OF GOODS/SERVICES - SUBSISTENCE,Chief Scientific Advisors team,CORPORATE TRAVEL MANAGEMENT NORTH LTD,1011708405,293.87,Week 4 Travel Expenses,BD1 5HQ,ADMIN
FOOD STANDARDS AGENCY - Westminster,FOOD STANDARDS AGENCY - Westminster,2019-02-05,EXP - PURCHASE OF GOODS/SERVICES - SUBSISTENCE,Chemical Contaminants and Residues,CORPORATE TRAVEL MANAGEMENT NORTH LTD,1011708405,292.75,Week 4 Travel Expenses,BD1 5HQ,ADMIN
FOOD STANDARDS AGENCY - Westminster,FOOD STANDARDS AGENCY - Westminster,2019-02-05,EXP - PURCHASE OF GOODS/SERVICES - SUBSISTENCE,Internal Audit,CORPORATE TRAVEL MANAGEMENT NORTH LTD,1011708405,292.40,Week 4 Travel Expenses,BD1 5HQ,ADMIN
FOOD STANDARDS AGENCY - Westminster,FOOD STANDARDS AGENCY - Westminster,2019-02-05,EXP - PURCHASE OF GOODS/SERVICES -  FOREIGN AIR TRAVEL,"Food Additives, Flavourings, and Food Contact Materials",CORPORATE TRAVEL MANAGEMENT NORTH LTD,1011708405,288.00,Week 4 Travel Expenses,BD1 5HQ,ADMIN
FOOD STANDARDS AGENCY - Westminster,FOOD STANDARDS AGENCY - Westminster,2019-02-05,EXP - PURCHASE OF GOODS/SERVICES - SUBSISTENCE,Wales and West 2 (Wales),CORPORATE TRAVEL MANAGEMENT NORTH LTD,1011708405,286.10,Week 4 Travel Expenses,BD1 5HQ,PROGRAMME
FOOD STANDARDS AGENCY - Westminster,FOOD STANDARDS AGENCY - Westminster,2019-02-26,EXP - PURCHASE OF GOODS/SERVICES - FOREIGN SUBSISTENCE,Chemical Contaminants and Residues,CORPORATE TRAVEL MANAGEMENT NORTH LTD,1011708650,285.64,Week 7 Travel Expenses,BD1 5HQ,ADMIN
FOOD STANDARDS AGENCY - Westminster,FOOD STANDARDS AGENCY - Westminster,2019-02-26,EXP - PURCHASE OF GOODS/SERVICES - RAIL TRAVEL,Wales and West 1 (England),CORPORATE TRAVEL MANAGEMENT NORTH LTD,1011708650,283.20,Week 7 Travel Expenses,BD1 5HQ,PROGRAMME
FOOD STANDARDS AGENCY - Westminster,FOOD STANDARDS AGENCY - Westminster,2019-02-05,EXP - PURCHASE OF GOODS/SERVICES - SUBSISTENCE,Wales and West 4 ,CORPORATE TRAVEL MANAGEMENT NORTH LTD,1011708405,278.90,Week 4 Travel Expenses,BD1 5HQ,PROGRAMME
FOOD STANDARDS AGENCY - Westminster,FOOD STANDARDS AGENCY - Westminster,2019-02-26,EXP - PURCHASE OF GOODS/SERVICES - RAIL TRAVEL,Wales and West 2 (Wales),CORPORATE TRAVEL MANAGEMENT NORTH LTD,1011708650,278.60,Week 7 Travel Expenses,BD1 5HQ,PROGRAMME
FOOD STANDARDS AGENCY - Westminster,FOOD STANDARDS AGENCY - Westminster,2019-02-26,EXP - PURCHASE OF GOODS/SERVICES - SUBSISTENCE,Food Incidents & Resilience - Prog,CORPORATE TRAVEL MANAGEMENT NORTH LTD,1011708650,278.55,Week 7 Travel Expenses,BD1 5HQ,PROGRAMME
FOOD STANDARDS AGENCY - Westminster,FOOD STANDARDS AGENCY - Westminster,2019-02-26,EXP - PURCHASE OF GOODS/SERVICES - RAIL TRAVEL,Wales and West 4 ,CORPORATE TRAVEL MANAGEMENT NORTH LTD,1011708650,275.65,Week 7 Travel Expenses,BD1 5HQ,PROGRAMME
FOOD STANDARDS AGENCY - Westminster,FOOD STANDARDS AGENCY - Westminster,2019-02-26,EXP - PURCHASE OF GOODS/SERVICES - AIR TRAVEL,Regulating our Future,CORPORATE TRAVEL MANAGEMENT NORTH LTD,1011708650,275.52,Week 7 Travel Expenses,BD1 5HQ,ADMIN
FOOD STANDARDS AGENCY - Westminster,FOOD STANDARDS AGENCY - Westminster,2019-02-05,EXP - PURCHASE OF GOODS/SERVICES - RAIL TRAVEL,"Novel Foods, GM, Radiological and Feed Additives",CORPORATE TRAVEL MANAGEMENT NORTH LTD,1011708405,274.40,Week 4 Travel Expenses,BD1 5HQ,ADMIN
FOOD STANDARDS AGENCY - Westminster,FOOD STANDARDS AGENCY - Westminster,2019-02-20,EXP - PURCHASE OF GOODS/SERVICES - SUBSISTENCE,IT Information & Knowledge Management,CORPORATE TRAVEL MANAGEMENT NORTH LTD,1011708586,271.75,Week 6 Travel Expenses,BD1 5HQ,ADMIN
FOOD STANDARDS AGENCY - Westminster,FOOD STANDARDS AGENCY - Westminster,2019-02-12,EXP - PURCHASE OF GOODS/SERVICES -  FOREIGN AIR TRAVEL,"Novel Foods, GM, Radiological and Feed Additives",CORPORATE TRAVEL MANAGEMENT NORTH LTD,1011708496,268.50,Week 5 Travel Expenses,BD1 5HQ,ADMIN
FOOD STANDARDS AGENCY - Westminster,FOOD STANDARDS AGENCY - Westminster,2019-02-26,EXP - PURCHASE OF GOODS/SERVICES - RAIL TRAVEL,SCIENTIFIC METHODS AND LABORATORY POLICY,CORPORATE TRAVEL MANAGEMENT NORTH LTD,1011708650,265.00,Week 7 Travel Expenses,BD1 5HQ,ADMIN
FOOD STANDARDS AGENCY - Westminster,FOOD STANDARDS AGENCY - Westminster,2019-02-20,EXP - PURCHASE OF GOODS/SERVICES - SUBSISTENCE,Chemical Contaminants and Residues,CORPORATE TRAVEL MANAGEMENT NORTH LTD,1011708586,263.24,Week 6 Travel Expenses,BD1 5HQ,ADMIN
FOOD STANDARDS AGENCY - Westminster,FOOD STANDARDS AGENCY - Westminster,2019-02-20,EXP - PURCHASE OF GOODS/SERVICES - RAIL TRAVEL,"Novel Foods, GM, Radiological and Feed Additives",CORPORATE TRAVEL MANAGEMENT NORTH LTD,1011708586,262.70,Week 6 Travel Expenses,BD1 5HQ,ADMIN
FOOD STANDARDS AGENCY - Westminster,FOOD STANDARDS AGENCY - Westminster,2019-02-20,EXP - PURCHASE OF GOODS/SERVICES - RAIL TRAVEL,Wales and West 2 (England),CORPORATE TRAVEL MANAGEMENT NORTH LTD,1011708586,259.30,Week 6 Travel Expenses,BD1 5HQ,PROGRAMME
FOOD STANDARDS AGENCY - Westminster,FOOD STANDARDS AGENCY - Westminster,2019-02-05,EXP - PURCHASE OF GOODS/SERVICES - RAIL TRAVEL,Food Crime Unit - Prog,CORPORATE TRAVEL MANAGEMENT NORTH LTD,1011708405,257.20,Week 4 Travel Expenses,BD1 5HQ,PROGRAMME
FOOD STANDARDS AGENCY - Westminster,FOOD STANDARDS AGENCY - Westminster,2019-02-20,EXP - PURCHASE OF GOODS/SERVICES - RAIL TRAVEL,Procurement,CORPORATE TRAVEL MANAGEMENT NORTH LTD,1011708586,256.50,Week 6 Travel Expenses,BD1 5HQ,ADMIN
FOOD STANDARDS AGENCY - Westminster,FOOD STANDARDS AGENCY - Westminster,2019-02-26,EXP - PURCHASE OF GOODS/SERVICES - AIR TRAVEL,Operations Assurance ,CORPORATE TRAVEL MANAGEMENT NORTH LTD,1011708650,255.69,Week 7 Travel Expenses,BD1 5HQ,PROGRAMME
FOOD STANDARDS AGENCY - Westminster,FOOD STANDARDS AGENCY - Westminster,2019-02-20,EXP - PURCHASE OF GOODS/SERVICES - RAIL TRAVEL,Resilience - Admin,CORPORATE TRAVEL MANAGEMENT NORTH LTD,1011708586,254.50,Week 6 Travel Expenses,BD1 5HQ,ADMIN
FOOD STANDARDS AGENCY - Westminster,FOOD STANDARDS AGENCY - Westminster,2019-02-26,EXP - PURCHASE OF GOODS/SERVICES - AIR TRAVEL,Regulatory Delivery,CORPORATE TRAVEL MANAGEMENT NORTH LTD,1011708650,254.46,Week 7 Travel Expenses,BD1 5HQ,ADMIN
FOOD STANDARDS AGENCY - Westminster,FOOD STANDARDS AGENCY - Westminster,2019-02-12,EXP - PURCHASE OF GOODS/SERVICES - RAIL TRAVEL,Allergens,CORPORATE TRAVEL MANAGEMENT NORTH LTD,1011708496,250.85,Week 5 Travel Expenses,BD1 5HQ,ADMIN
FOOD STANDARDS AGENCY - Westminster,FOOD STANDARDS AGENCY - Westminster,2019-02-20,EXP - PURCHASE OF GOODS/SERVICES - RAIL TRAVEL,North 4,CORPORATE TRAVEL MANAGEMENT NORTH LTD,1011708586,244.35,Week 6 Travel Expenses,BD1 5HQ,PROGRAMME
FOOD STANDARDS AGENCY - Westminster,FOOD STANDARDS AGENCY - Westminster,2019-02-20,EXP - PURCHASE OF GOODS/SERVICES -  FOREIGN AIR TRAVEL,Chemical Contaminants and Residues,CORPORATE TRAVEL MANAGEMENT NORTH LTD,1011708586,244.00,Week 6 Travel Expenses,BD1 5HQ,ADMIN
FOOD STANDARDS AGENCY - Westminster,FOOD STANDARDS AGENCY - Westminster,2019-02-12,EXP - PURCHASE OF GOODS/SERVICES - FOREIGN SUBSISTENCE,"Novel Foods, GM, Radiological and Feed Additives",CORPORATE TRAVEL MANAGEMENT NORTH LTD,1011708496,231.22,Week 5 Travel Expenses,BD1 5HQ,ADMIN
FOOD STANDARDS AGENCY - Westminster,FOOD STANDARDS AGENCY - Westminster,2019-02-13,EXP - PURCHASE OF GOODS/SERVICES - OTHER FACILITIES COSTS  - MEETING ROOM HIRE,Corporate Support Unit,CALDER CONFERENCES LTD,1011708520,225.00,FSA Conference spend Nov 18 onwards,LS16 6RF,ADMIN
FOOD STANDARDS AGENCY - Westminster,FOOD STANDARDS AGENCY - Westminster,2019-02-12,EXP - PURCHASE OF GOODS/SERVICES - RAIL TRAVEL,Food Crime Unit - Admin,CORPORATE TRAVEL MANAGEMENT NORTH LTD,1011708496,221.50,Week 5 Travel Expenses,BD1 5HQ,ADMIN
FOOD STANDARDS AGENCY - Westminster,FOOD STANDARDS AGENCY - Westminster,2019-02-13,EXP - PURCHASE OF GOODS/SERVICES - OTHER FACILITIES COSTS  - MEETING ROOM HIRE,IT Information & Knowledge Management,CALDER CONFERENCES LTD,1011708520,220.00,FSA Conference spend Nov 18 onwards,LS16 6RF,ADMIN
FOOD STANDARDS AGENCY - Westminster,FOOD STANDARDS AGENCY - Westminster,2019-02-12,EXP - PURCHASE OF GOODS/SERVICES - SUBSISTENCE,"Novel Foods, GM, Radiological and Feed Additives",CORPORATE TRAVEL MANAGEMENT NORTH LTD,1011708496,219.21,Week 5 Travel Expenses,BD1 5HQ,ADMIN
FOOD STANDARDS AGENCY - Westminster,FOOD STANDARDS AGENCY - Westminster,2019-02-26,EXP - PURCHASE OF GOODS/SERVICES - RAIL TRAVEL,North 1,CORPORATE TRAVEL MANAGEMENT NORTH LTD,1011708650,219.00,Week 7 Travel Expenses,BD1 5HQ,PROGRAMME
FOOD STANDARDS AGENCY - Westminster,FOOD STANDARDS AGENCY - Westminster,2019-02-12,EXP - PURCHASE OF GOODS/SERVICES - RAIL TRAVEL,SCIENTIFIC METHODS AND LABORATORY POLICY,CORPORATE TRAVEL MANAGEMENT NORTH LTD,1011708496,217.50,Week 5 Travel Expenses,BD1 5HQ,ADMIN
FOOD STANDARDS AGENCY - Westminster,FOOD STANDARDS AGENCY - Westminster,2019-02-05,EXP - PURCHASE OF GOODS/SERVICES - SUBSISTENCE,Comms Directors Office,CORPORATE TRAVEL MANAGEMENT NORTH LTD,1011708405,216.60,Week 4 Travel Expenses,BD1 5HQ,ADMIN
FOOD STANDARDS AGENCY - Westminster,FOOD STANDARDS AGENCY - Westminster,2019-02-05,EXP - PURCHASE OF GOODS/SERVICES - RAIL TRAVEL,SCIENTIFIC METHODS AND LABORATORY POLICY,CORPORATE TRAVEL MANAGEMENT NORTH LTD,1011708405,216.50,Week 4 Travel Expenses,BD1 5HQ,ADMIN
FOOD STANDARDS AGENCY - Westminster,FOOD STANDARDS AGENCY - Westminster,2019-02-12,EXP - PURCHASE OF GOODS/SERVICES - SUBSISTENCE,Regulating our Future,CORPORATE TRAVEL MANAGEMENT NORTH LTD,1011708496,215.10,Week 5 Travel Expenses,BD1 5HQ,ADMIN
FOOD STANDARDS AGENCY - Westminster,FOOD STANDARDS AGENCY - Westminster,2019-02-26,EXP - PURCHASE OF GOODS/SERVICES - RAIL TRAVEL,Wales and West 2 (England),CORPORATE TRAVEL MANAGEMENT NORTH LTD,1011708650,213.75,Week 7 Travel Expenses,BD1 5HQ,PROGRAMME
FOOD STANDARDS AGENCY - Westminster,FOOD STANDARDS AGENCY - Westminster,2019-02-12,EXP - PURCHASE OF GOODS/SERVICES - AIR TRAVEL,Organisational Development,CORPORATE TRAVEL MANAGEMENT NORTH LTD,1011708496,210.06,Week 5 Travel Expenses,BD1 5HQ,ADMIN
FOOD STANDARDS AGENCY - Westminster,FOOD STANDARDS AGENCY - Westminster,2019-02-12,EXP - PURCHASE OF GOODS/SERVICES - SUBSISTENCE,Wales and West 2 (England),CORPORATE TRAVEL MANAGEMENT NORTH LTD,1011708496,209.10,Week 5 Travel Expenses,BD1 5HQ,PROGRAMME
FOOD STANDARDS AGENCY - Westminster,FOOD STANDARDS AGENCY - Westminster,2019-02-26,EXP - PURCHASE OF GOODS/SERVICES - SUBSISTENCE,Internal Audit,CORPORATE TRAVEL MANAGEMENT NORTH LTD,1011708650,204.73,Week 7 Travel Expenses,BD1 5HQ,ADMIN
FOOD STANDARDS AGENCY - Westminster,FOOD STANDARDS AGENCY - Westminster,2019-02-26,EXP - PURCHASE OF GOODS/SERVICES - RAIL TRAVEL,Allergens,CORPORATE TRAVEL MANAGEMENT NORTH LTD,1011708650,204.15,Week 7 Travel Expenses,BD1 5HQ,ADMIN
FOOD STANDARDS AGENCY - Westminster,FOOD STANDARDS AGENCY - Westminster,2019-02-20,EXP - PURCHASE OF GOODS/SERVICES - SUBSISTENCE,Regulating our Future,CORPORATE TRAVEL MANAGEMENT NORTH LTD,1011708586,201.80,Week 6 Travel Expenses,BD1 5HQ,ADMIN
FOOD STANDARDS AGENCY - Westminster,FOOD STANDARDS AGENCY - Westminster,2019-02-12,EXP - PURCHASE OF GOODS/SERVICES - RAIL TRAVEL,Wales and West 1 (England),CORPORATE TRAVEL MANAGEMENT NORTH LTD,1011708496,201.65,Week 5 Travel Expenses,BD1 5HQ,PROGRAMME
FOOD STANDARDS AGENCY - Westminster,FOOD STANDARDS AGENCY - Westminster,2019-02-12,EXP - PURCHASE OF GOODS/SERVICES - AIR TRAVEL,Legal Branch A & Investigations,CORPORATE TRAVEL MANAGEMENT NORTH LTD,1011708496,199.96,Week 5 Travel Expenses,BD1 5HQ,ADMIN
FOOD STANDARDS AGENCY - Westminster,FOOD STANDARDS AGENCY - Westminster,2019-02-05,EXP - PURCHASE OF GOODS/SERVICES - RAIL TRAVEL,IT Service Delivery,CORPORATE TRAVEL MANAGEMENT NORTH LTD,1011708405,199.30,Week 4 Travel Expenses,BD1 5HQ,ADMIN
FOOD STANDARDS AGENCY - Westminster,FOOD STANDARDS AGENCY - Westminster,2019-02-12,EXP - PURCHASE OF GOODS/SERVICES - RAIL TRAVEL,North 4,CORPORATE TRAVEL MANAGEMENT NORTH LTD,1011708496,199.10,Week 5 Travel Expenses,BD1 5HQ,PROGRAMME
FOOD STANDARDS AGENCY - Westminster,FOOD STANDARDS AGENCY - Westminster,2019-02-20,EXP - PURCHASE OF GOODS/SERVICES - SUBSISTENCE,FINANCE ,CORPORATE TRAVEL MANAGEMENT NORTH LTD,1011708586,196.65,Week 6 Travel Expenses,BD1 5HQ,ADMIN
FOOD STANDARDS AGENCY - Westminster,FOOD STANDARDS AGENCY - Westminster,2019-02-26,EXP - PURCHASE OF GOODS/SERVICES - SUBSISTENCE,Risk Assessment ? research and development,CORPORATE TRAVEL MANAGEMENT NORTH LTD,1011708650,196.60,Week 7 Travel Expenses,BD1 5HQ,ADMIN
FOOD STANDARDS AGENCY - Westminster,FOOD STANDARDS AGENCY - Westminster,2019-02-26,EXP - PURCHASE OF GOODS/SERVICES - SUBSISTENCE,Digital,CORPORATE TRAVEL MANAGEMENT NORTH LTD,1011708650,194.90,Week 7 Travel Expenses,BD1 5HQ,ADMIN
FOOD STANDARDS AGENCY - Westminster,FOOD STANDARDS AGENCY - Westminster,2019-02-20,EXP - PURCHASE OF GOODS/SERVICES - SUBSISTENCE,"Meat Hygiene, ABP, TSE",CORPORATE TRAVEL MANAGEMENT NORTH LTD,1011708586,193.50,Week 6 Travel Expenses,BD1 5HQ,ADMIN
FOOD STANDARDS AGENCY - Westminster,FOOD STANDARDS AGENCY - Westminster,2019-02-26,EXP - PURCHASE OF GOODS/SERVICES - SUBSISTENCE,Chief Executive & Private Office,CORPORATE TRAVEL MANAGEMENT NORTH LTD,1011708650,193.20,Week 7 Travel Expenses,BD1 5HQ,ADMIN
FOOD STANDARDS AGENCY - Westminster,FOOD STANDARDS AGENCY - Westminster,2019-02-26,EXP - PURCHASE OF GOODS/SERVICES -  FOREIGN AIR TRAVEL,Food Crime Unit - Prog,CORPORATE TRAVEL MANAGEMENT NORTH LTD,1011708650,192.68,Week 7 Travel Expenses,BD1 5HQ,PROGRAMME
FOOD STANDARDS AGENCY - Westminster,FOOD STANDARDS AGENCY - Westminster,2019-02-13,EXP - PURCHASE OF GOODS/SERVICES - OTHER FACILITIES COSTS  - MEETING ROOM HIRE,Non Meat Field Ops,CALDER CONFERENCES LTD,1011708520,192.00,FSA Conference spend Nov 18 onwards,LS16 6RF,PROGRAMME
FOOD STANDARDS AGENCY - Westminster,FOOD STANDARDS AGENCY - Westminster,2019-02-20,EXP - PURCHASE OF GOODS/SERVICES - RAIL TRAVEL,Food Crime Unit - Prog,CORPORATE TRAVEL MANAGEMENT NORTH LTD,1011708586,190.35,Week 6 Travel Expenses,BD1 5HQ,PROGRAMME
FOOD STANDARDS AGENCY - Westminster,FOOD STANDARDS AGENCY - Westminster,2019-02-20,EXP - PURCHASE OF GOODS/SERVICES - RAIL TRAVEL,Wales and West 1 (England),CORPORATE TRAVEL MANAGEMENT NORTH LTD,1011708586,186.50,Week 6 Travel Expenses,BD1 5HQ,PROGRAMME
FOOD STANDARDS AGENCY - Westminster,FOOD STANDARDS AGENCY - Westminster,2019-02-20,EXP - PURCHASE OF GOODS/SERVICES - RAIL TRAVEL,Food Crime Unit - Admin,CORPORATE TRAVEL MANAGEMENT NORTH LTD,1011708586,184.35,Week 6 Travel Expenses,BD1 5HQ,ADMIN
FOOD STANDARDS AGENCY - Westminster,FOOD STANDARDS AGENCY - Westminster,2019-02-05,EXP - PURCHASE OF GOODS/SERVICES - RAIL TRAVEL,Imports & Exports Team (Admin),CORPORATE TRAVEL MANAGEMENT NORTH LTD,1011708405,183.10,Week 4 Travel Expenses,BD1 5HQ,ADMIN
FOOD STANDARDS AGENCY - Westminster,FOOD STANDARDS AGENCY - Westminster,2019-02-20,EXP - PURCHASE OF GOODS/SERVICES - RAIL TRAVEL,Chemical Contaminants and Residues,CORPORATE TRAVEL MANAGEMENT NORTH LTD,1011708586,181.60,Week 6 Travel Expenses,BD1 5HQ,ADMIN
FOOD STANDARDS AGENCY - Westminster,FOOD STANDARDS AGENCY - Westminster,2019-02-20,EXP - PURCHASE OF GOODS/SERVICES - RAIL TRAVEL,Internal Audit,CORPORATE TRAVEL MANAGEMENT NORTH LTD,1011708586,179.85,Week 6 Travel Expenses,BD1 5HQ,ADMIN
FOOD STANDARDS AGENCY - Westminster,FOOD STANDARDS AGENCY - Westminster,2019-02-20,EXP - PURCHASE OF GOODS/SERVICES - RAIL TRAVEL,Legal Branch A & Investigations,CORPORATE TRAVEL MANAGEMENT NORTH LTD,1011708586,179.50,Week 6 Travel Expenses,BD1 5HQ,ADMIN
FOOD STANDARDS AGENCY - Westminster,FOOD STANDARDS AGENCY - Westminster,2019-02-12,EXP - PURCHASE OF GOODS/SERVICES - SUBSISTENCE,North 4,CORPORATE TRAVEL MANAGEMENT NORTH LTD,1011708496,178.20,Week 5 Travel Expenses,BD1 5HQ,PROGRAMME
FOOD STANDARDS AGENCY - Westminster,FOOD STANDARDS AGENCY - Westminster,2019-02-12,EXP - PURCHASE OF GOODS/SERVICES - AIR TRAVEL,Operations Assurance ,CORPORATE TRAVEL MANAGEMENT NORTH LTD,1011708496,176.59,Week 5 Travel Expenses,BD1 5HQ,PROGRAMME
FOOD STANDARDS AGENCY - Westminster,FOOD STANDARDS AGENCY - Westminster,2019-02-05,EXP - PURCHASE OF GOODS/SERVICES - SUBSISTENCE,FINANCE ,CORPORATE TRAVEL MANAGEMENT NORTH LTD,1011708405,176.20,Week 4 Travel Expenses,BD1 5HQ,ADMIN
FOOD STANDARDS AGENCY - Westminster,FOOD STANDARDS AGENCY - Westminster,2019-02-26,EXP - PURCHASE OF GOODS/SERVICES -  FOREIGN AIR TRAVEL,"Food Additives, Flavourings, and Food Contact Materials",CORPORATE TRAVEL MANAGEMENT NORTH LTD,1011708650,173.00,Week 7 Travel Expenses,BD1 5HQ,ADMIN
FOOD STANDARDS AGENCY - Westminster,FOOD STANDARDS AGENCY - Westminster,2019-02-20,EXP - PURCHASE OF GOODS/SERVICES - SUBSISTENCE,Resilience - Admin,CORPORATE TRAVEL MANAGEMENT NORTH LTD,1011708586,172.60,Week 6 Travel Expenses,BD1 5HQ,ADMIN
FOOD STANDARDS AGENCY - Westminster,FOOD STANDARDS AGENCY - Westminster,2019-02-05,EXP - PURCHASE OF GOODS/SERVICES - SUBSISTENCE,IT Information & Knowledge Management,CORPORATE TRAVEL MANAGEMENT NORTH LTD,1011708405,170.60,Week 4 Travel Expenses,BD1 5HQ,ADMIN
FOOD STANDARDS AGENCY - Westminster,FOOD STANDARDS AGENCY - Westminster,2019-02-12,EXP - PURCHASE OF GOODS/SERVICES - AIR TRAVEL,Resilience - Admin,CORPORATE TRAVEL MANAGEMENT NORTH LTD,1011708496,170.44,Week 5 Travel Expenses,BD1 5HQ,ADMIN
FOOD STANDARDS AGENCY - Westminster,FOOD STANDARDS AGENCY - Westminster,2019-02-05,EXP - PURCHASE OF GOODS/SERVICES - RAIL TRAVEL,Analytics Unit,CORPORATE TRAVEL MANAGEMENT NORTH LTD,1011708405,170.30,Week 4 Travel Expenses,BD1 5HQ,ADMIN
FOOD STANDARDS AGENCY - Westminster,FOOD STANDARDS AGENCY - Westminster,2019-02-26,EXP - PURCHASE OF GOODS/SERVICES - SUBSISTENCE,IT Service Delivery,CORPORATE TRAVEL MANAGEMENT NORTH LTD,1011708650,170.10,Week 7 Travel Expenses,BD1 5HQ,ADMIN
FOOD STANDARDS AGENCY - Westminster,FOOD STANDARDS AGENCY - Westminster,2019-02-26,EXP - PURCHASE OF GOODS/SERVICES - RAIL TRAVEL,East 3,CORPORATE TRAVEL MANAGEMENT NORTH LTD,1011708650,170.10,Week 7 Travel Expenses,BD1 5HQ,PROGRAMME
FOOD STANDARDS AGENCY - Westminster,FOOD STANDARDS AGENCY - Westminster,2019-02-05,EXP - PURCHASE OF GOODS/SERVICES - SUBSISTENCE,Procurement,CORPORATE TRAVEL MANAGEMENT NORTH LTD,1011708405,168.40,Week 4 Travel Expenses,BD1 5HQ,ADMIN
FOOD STANDARDS AGENCY - Westminster,FOOD STANDARDS AGENCY - Westminster,2019-02-05,EXP - PURCHASE OF GOODS/SERVICES - AIR TRAVEL,Regulatory & International,CORPORATE TRAVEL MANAGEMENT NORTH LTD,1011708405,168.00,Week 4 Travel Expenses,BD1 5HQ,ADMIN
FOOD STANDARDS AGENCY - Westminster,FOOD STANDARDS AGENCY - Westminster,2019-02-12,EXP - PURCHASE OF GOODS/SERVICES - FOREIGN SUBSISTENCE,Chemical Contaminants and Residues,CORPORATE TRAVEL MANAGEMENT NORTH LTD,1011708496,165.44,Week 5 Travel Expenses,BD1 5HQ,ADMIN
FOOD STANDARDS AGENCY - Westminster,FOOD STANDARDS AGENCY - Westminster,2019-02-26,EXP - PURCHASE OF GOODS/SERVICES - RAIL TRAVEL,Programme and project delivery,CORPORATE TRAVEL MANAGEMENT NORTH LTD,1011708650,165.00,Week 7 Travel Expenses,BD1 5HQ,ADMIN
FOOD STANDARDS AGENCY - Westminster,FOOD STANDARDS AGENCY - Westminster,2019-02-05,EXP - PURCHASE OF GOODS/SERVICES - RAIL TRAVEL,East 1,CORPORATE TRAVEL MANAGEMENT NORTH LTD,1011708405,164.85,Week 4 Travel Expenses,BD1 5HQ,PROGRAMME
FOOD STANDARDS AGENCY - Westminster,FOOD STANDARDS AGENCY - Westminster,2019-02-26,EXP - PURCHASE OF GOODS/SERVICES - SUBSISTENCE,Legal Branch A & Investigations,CORPORATE TRAVEL MANAGEMENT NORTH LTD,1011708650,164.65,Week 7 Travel Expenses,BD1 5HQ,ADMIN
FOOD STANDARDS AGENCY - Westminster,FOOD STANDARDS AGENCY - Westminster,2019-02-26,EXP - PURCHASE OF GOODS/SERVICES - RAIL TRAVEL,"Meat Hygiene, ABP, TSE",CORPORATE TRAVEL MANAGEMENT NORTH LTD,1011708650,164.60,Week 7 Travel Expenses,BD1 5HQ,ADMIN
FOOD STANDARDS AGENCY - Westminster,FOOD STANDARDS AGENCY - Westminster,2019-02-12,EXP - PURCHASE OF GOODS/SERVICES - SUBSISTENCE,FINANCE ,CORPORATE TRAVEL MANAGEMENT NORTH LTD,1011708496,161.70,Week 5 Travel Expenses,BD1 5HQ,ADMIN
FOOD STANDARDS AGENCY - Westminster,FOOD STANDARDS AGENCY - Westminster,2019-02-08,EXP - SHORT-TERM CONTRACT & AGENCY STAFF - FULL COST,Regulatory Delivery,ALEXANDER MANN SOLUTIONS LTD-2WM,1011708475,161.20,"TEMPORARY STAFF											",EC2N 3AQ,ADMIN
FOOD STANDARDS AGENCY - Westminster,FOOD STANDARDS AGENCY - Westminster,2019-02-12,EXP - PURCHASE OF GOODS/SERVICES - SUBSISTENCE,North 1,CORPORATE TRAVEL MANAGEMENT NORTH LTD,1011708496,160.30,Week 5 Travel Expenses,BD1 5HQ,PROGRAMME
FOOD STANDARDS AGENCY - Westminster,FOOD STANDARDS AGENCY - Westminster,2019-02-26,EXP - PURCHASE OF GOODS/SERVICES - SUBSISTENCE,Wales and West 3 ,CORPORATE TRAVEL MANAGEMENT NORTH LTD,1011708650,159.15,Week 7 Travel Expenses,BD1 5HQ,PROGRAMME
FOOD STANDARDS AGENCY - Westminster,FOOD STANDARDS AGENCY - Westminster,2019-02-12,EXP - PURCHASE OF GOODS/SERVICES - SUBSISTENCE,Chief Scientific Advisors team,CORPORATE TRAVEL MANAGEMENT NORTH LTD,1011708496,159.10,Week 5 Travel Expenses,BD1 5HQ,ADMIN
FOOD STANDARDS AGENCY - Westminster,FOOD STANDARDS AGENCY - Westminster,2019-02-20,EXP - PURCHASE OF GOODS/SERVICES - RAIL TRAVEL,Analytics Unit,CORPORATE TRAVEL MANAGEMENT NORTH LTD,1011708586,155.45,Week 6 Travel Expenses,BD1 5HQ,ADMIN
FOOD STANDARDS AGENCY - Westminster,FOOD STANDARDS AGENCY - Westminster,2019-02-12,EXP - PURCHASE OF GOODS/SERVICES - RAIL TRAVEL,Internal Audit,CORPORATE TRAVEL MANAGEMENT NORTH LTD,1011708496,154.50,Week 5 Travel Expenses,BD1 5HQ,ADMIN
FOOD STANDARDS AGENCY - Westminster,FOOD STANDARDS AGENCY - Westminster,2019-02-13,EXP - PURCHASE OF GOODS/SERVICES - OTHER FACILITIES COSTS  - MEETING ROOM HIRE,North 1,CALDER CONFERENCES LTD,1011708520,154.17,FSA Conference spend Nov 18 onwards,LS16 6RF,PROGRAMME
FOOD STANDARDS AGENCY - Westminster,FOOD STANDARDS AGENCY - Westminster,2019-02-05,EXP - PURCHASE OF GOODS/SERVICES - SUBSISTENCE,"Food Additives, Flavourings, and Food Contact Materials",CORPORATE TRAVEL MANAGEMENT NORTH LTD,1011708405,154.11,Week 4 Travel Expenses,BD1 5HQ,ADMIN
FOOD STANDARDS AGENCY - Westminster,FOOD STANDARDS AGENCY - Westminster,2019-02-05,EXP - PURCHASE OF GOODS/SERVICES - RAIL TRAVEL,East 3,CORPORATE TRAVEL MANAGEMENT NORTH LTD,1011708405,152.25,Week 4 Travel Expenses,BD1 5HQ,PROGRAMME
FOOD STANDARDS AGENCY - Westminster,FOOD STANDARDS AGENCY - Westminster,2019-02-12,EXP - PURCHASE OF GOODS/SERVICES - SUBSISTENCE,Food Crime Unit - Prog,CORPORATE TRAVEL MANAGEMENT NORTH LTD,1011708496,151.80,Week 5 Travel Expenses,BD1 5HQ,PROGRAMME
FOOD STANDARDS AGENCY - Westminster,FOOD STANDARDS AGENCY - Westminster,2019-02-26,EXP - PURCHASE OF GOODS/SERVICES - FOREIGN SUBSISTENCE,"Novel Foods, GM, Radiological and Feed Additives",CORPORATE TRAVEL MANAGEMENT NORTH LTD,1011708650,150.01,Week 7 Travel Expenses,BD1 5HQ,ADMIN
FOOD STANDARDS AGENCY - Westminster,FOOD STANDARDS AGENCY - Westminster,2019-02-20,EXP - PURCHASE OF GOODS/SERVICES - AIR TRAVEL,"Food Additives, Flavourings, and Food Contact Materials",CORPORATE TRAVEL MANAGEMENT NORTH LTD,1011708586,149.12,Week 6 Travel Expenses,BD1 5HQ,ADMIN
FOOD STANDARDS AGENCY - Westminster,FOOD STANDARDS AGENCY - Westminster,2019-02-26,EXP - PURCHASE OF GOODS/SERVICES - RAIL TRAVEL,Wales and West 1 (Wales),CORPORATE TRAVEL MANAGEMENT NORTH LTD,1011708650,149.00,Week 7 Travel Expenses,BD1 5HQ,PROGRAMME
FOOD STANDARDS AGENCY - Westminster,FOOD STANDARDS AGENCY - Westminster,2019-02-26,EXP - PURCHASE OF GOODS/SERVICES - SUBSISTENCE,"Food Additives, Flavourings, and Food Contact Materials",CORPORATE TRAVEL MANAGEMENT NORTH LTD,1011708650,146.32,Week 7 Travel Expenses,BD1 5HQ,ADMIN
FOOD STANDARDS AGENCY - Westminster,FOOD STANDARDS AGENCY - Westminster,2019-02-20,EXP - PURCHASE OF GOODS/SERVICES - RAIL TRAVEL,"Meat Hygiene, ABP, TSE",CORPORATE TRAVEL MANAGEMENT NORTH LTD,1011708586,144.30,Week 6 Travel Expenses,BD1 5HQ,ADMIN
FOOD STANDARDS AGENCY - Westminster,FOOD STANDARDS AGENCY - Westminster,2019-02-12,EXP - PURCHASE OF GOODS/SERVICES - AIR TRAVEL,Analytics Unit,CORPORATE TRAVEL MANAGEMENT NORTH LTD,1011708496,143.98,Week 5 Travel Expenses,BD1 5HQ,ADMIN
FOOD STANDARDS AGENCY - Westminster,FOOD STANDARDS AGENCY - Westminster,2019-02-26,EXP - PURCHASE OF GOODS/SERVICES - RAIL TRAVEL,Analytics Unit,CORPORATE TRAVEL MANAGEMENT NORTH LTD,1011708650,141.85,Week 7 Travel Expenses,BD1 5HQ,ADMIN
FOOD STANDARDS AGENCY - Westminster,FOOD STANDARDS AGENCY - Westminster,2019-02-12,EXP - PURCHASE OF GOODS/SERVICES - RAIL TRAVEL,Analytics Unit,CORPORATE TRAVEL MANAGEMENT NORTH LTD,1011708496,141.60,Week 5 Travel Expenses,BD1 5HQ,ADMIN
FOOD STANDARDS AGENCY - Westminster,FOOD STANDARDS AGENCY - Westminster,2019-02-05,EXP - PURCHASE OF GOODS/SERVICES - AIR TRAVEL,Operations Assurance ,CORPORATE TRAVEL MANAGEMENT NORTH LTD,1011708405,140.20,Week 4 Travel Expenses,BD1 5HQ,PROGRAMME
FOOD STANDARDS AGENCY - Westminster,FOOD STANDARDS AGENCY - Westminster,2019-02-20,EXP - PURCHASE OF GOODS/SERVICES - RAIL TRAVEL,Digital,CORPORATE TRAVEL MANAGEMENT NORTH LTD,1011708586,136.50,Week 6 Travel Expenses,BD1 5HQ,ADMIN
FOOD STANDARDS AGENCY - Westminster,FOOD STANDARDS AGENCY - Westminster,2019-02-26,EXP - PURCHASE OF GOODS/SERVICES - RAIL TRAVEL,North 2,CORPORATE TRAVEL MANAGEMENT NORTH LTD,1011708650,134.60,Week 7 Travel Expenses,BD1 5HQ,PROGRAMME
FOOD STANDARDS AGENCY - Westminster,FOOD STANDARDS AGENCY - Westminster,2019-02-20,EXP - PURCHASE OF GOODS/SERVICES - FOREIGN SUBSISTENCE,Food Crime Unit - Admin,CORPORATE TRAVEL MANAGEMENT NORTH LTD,1011708586,131.78,Week 6 Travel Expenses,BD1 5HQ,ADMIN
FOOD STANDARDS AGENCY - Westminster,FOOD STANDARDS AGENCY - Westminster,2019-02-20,EXP - PURCHASE OF GOODS/SERVICES - FOREIGN SUBSISTENCE,"Novel Foods, GM, Radiological and Feed Additives",CORPORATE TRAVEL MANAGEMENT NORTH LTD,1011708586,128.54,Week 6 Travel Expenses,BD1 5HQ,ADMIN
FOOD STANDARDS AGENCY - Westminster,FOOD STANDARDS AGENCY - Westminster,2019-02-20,EXP - PURCHASE OF GOODS/SERVICES - SUBSISTENCE,"Novel Foods, GM, Radiological and Feed Additives",CORPORATE TRAVEL MANAGEMENT NORTH LTD,1011708586,125.20,Week 6 Travel Expenses,BD1 5HQ,ADMIN
FOOD STANDARDS AGENCY - Westminster,FOOD STANDARDS AGENCY - Westminster,2019-02-20,EXP - PURCHASE OF GOODS/SERVICES - SUBSISTENCE,Wales and West 4 ,CORPORATE TRAVEL MANAGEMENT NORTH LTD,1011708586,124.70,Week 6 Travel Expenses,BD1 5HQ,PROGRAMME
FOOD STANDARDS AGENCY - Westminster,FOOD STANDARDS AGENCY - Westminster,2019-02-26,EXP - PURCHASE OF GOODS/SERVICES - RAIL TRAVEL,Procurement,CORPORATE TRAVEL MANAGEMENT NORTH LTD,1011708650,124.00,Week 7 Travel Expenses,BD1 5HQ,ADMIN
FOOD STANDARDS AGENCY - Westminster,FOOD STANDARDS AGENCY - Westminster,2019-02-26,EXP - PURCHASE OF GOODS/SERVICES - SUBSISTENCE,Wales and West 4 ,CORPORATE TRAVEL MANAGEMENT NORTH LTD,1011708650,123.20,Week 7 Travel Expenses,BD1 5HQ,PROGRAMME
FOOD STANDARDS AGENCY - Westminster,FOOD STANDARDS AGENCY - Westminster,2019-02-12,EXP - PURCHASE OF GOODS/SERVICES - RAIL TRAVEL,Wales and West 3 ,CORPORATE TRAVEL MANAGEMENT NORTH LTD,1011708496,122.70,Week 5 Travel Expenses,BD1 5HQ,PROGRAMME
FOOD STANDARDS AGENCY - Westminster,FOOD STANDARDS AGENCY - Westminster,2019-02-20,EXP - PURCHASE OF GOODS/SERVICES - AIR TRAVEL,Regulating our Future,CORPORATE TRAVEL MANAGEMENT NORTH LTD,1011708586,122.30,Week 6 Travel Expenses,BD1 5HQ,ADMIN
FOOD STANDARDS AGENCY - Westminster,FOOD STANDARDS AGENCY - Westminster,2019-02-26,EXP - PURCHASE OF GOODS/SERVICES - SUBSISTENCE,"Meat Hygiene, ABP, TSE",CORPORATE TRAVEL MANAGEMENT NORTH LTD,1011708650,122.15,Week 7 Travel Expenses,BD1 5HQ,ADMIN
FOOD STANDARDS AGENCY - Westminster,FOOD STANDARDS AGENCY - Westminster,2019-02-05,EXP - PURCHASE OF GOODS/SERVICES -  FOREIGN AIR TRAVEL,"Meat Hygiene, ABP, TSE",CORPORATE TRAVEL MANAGEMENT NORTH LTD,1011708405,122.00,Week 4 Travel Expenses,BD1 5HQ,ADMIN
FOOD STANDARDS AGENCY - Westminster,FOOD STANDARDS AGENCY - Westminster,2019-02-20,EXP - PURCHASE OF GOODS/SERVICES - RAIL TRAVEL,Imports & Exports Team (Admin),CORPORATE TRAVEL MANAGEMENT NORTH LTD,1011708586,121.70,Week 6 Travel Expenses,BD1 5HQ,ADMIN
FOOD STANDARDS AGENCY - Westminster,FOOD STANDARDS AGENCY - Westminster,2019-02-12,EXP - PURCHASE OF GOODS/SERVICES - RAIL TRAVEL,Non Meat Field Ops,CORPORATE TRAVEL MANAGEMENT NORTH LTD,1011708496,120.45,Week 5 Travel Expenses,BD1 5HQ,PROGRAMME
FOOD STANDARDS AGENCY - Westminster,FOOD STANDARDS AGENCY - Westminster,2019-02-20,EXP - PURCHASE OF GOODS/SERVICES - SUBSISTENCE,Regulatory & International,CORPORATE TRAVEL MANAGEMENT NORTH LTD,1011708586,117.60,Week 6 Travel Expenses,BD1 5HQ,ADMIN
FOOD STANDARDS AGENCY - Westminster,FOOD STANDARDS AGENCY - Westminster,2019-02-26,EXP - PURCHASE OF GOODS/SERVICES - SUBSISTENCE,East 3,CORPORATE TRAVEL MANAGEMENT NORTH LTD,1011708650,117.20,Week 7 Travel Expenses,BD1 5HQ,PROGRAMME
FOOD STANDARDS AGENCY - Westminster,FOOD STANDARDS AGENCY - Westminster,2019-02-26,EXP - PURCHASE OF GOODS/SERVICES - SUBSISTENCE,Procurement,CORPORATE TRAVEL MANAGEMENT NORTH LTD,1011708650,115.60,Week 7 Travel Expenses,BD1 5HQ,ADMIN
FOOD STANDARDS AGENCY - Westminster,FOOD STANDARDS AGENCY - Westminster,2019-02-12,EXP - PURCHASE OF GOODS/SERVICES - SUBSISTENCE,"Food Additives, Flavourings, and Food Contact Materials",CORPORATE TRAVEL MANAGEMENT NORTH LTD,1011708496,113.70,Week 5 Travel Expenses,BD1 5HQ,ADMIN
FOOD STANDARDS AGENCY - Westminster,FOOD STANDARDS AGENCY - Westminster,2019-02-20,EXP - PURCHASE OF GOODS/SERVICES - AIR TRAVEL,"Meat Hygiene, ABP, TSE",CORPORATE TRAVEL MANAGEMENT NORTH LTD,1011708586,111.00,Week 6 Travel Expenses,BD1 5HQ,ADMIN
FOOD STANDARDS AGENCY - Westminster,FOOD STANDARDS AGENCY - Westminster,2019-02-12,EXP - PURCHASE OF GOODS/SERVICES - RAIL TRAVEL,North 2,CORPORATE TRAVEL MANAGEMENT NORTH LTD,1011708496,110.90,Week 5 Travel Expenses,BD1 5HQ,PROGRAMME
FOOD STANDARDS AGENCY - Westminster,FOOD STANDARDS AGENCY - Westminster,2019-02-12,EXP - PURCHASE OF GOODS/SERVICES - RAIL TRAVEL,Legal Branch A & Investigations,CORPORATE TRAVEL MANAGEMENT NORTH LTD,1011708496,110.30,Week 5 Travel Expenses,BD1 5HQ,ADMIN
FOOD STANDARDS AGENCY - Westminster,FOOD STANDARDS AGENCY - Westminster,2019-02-26,EXP - PURCHASE OF GOODS/SERVICES - SUBSISTENCE,Wales and West 2 (Wales),CORPORATE TRAVEL MANAGEMENT NORTH LTD,1011708650,108.55,Week 7 Travel Expenses,BD1 5HQ,PROGRAMME
FOOD STANDARDS AGENCY - Westminster,FOOD STANDARDS AGENCY - Westminster,2019-02-20,EXP - PURCHASE OF GOODS/SERVICES - AIR TRAVEL,Regulatory & International,CORPORATE TRAVEL MANAGEMENT NORTH LTD,1011708586,108.44,Week 6 Travel Expenses,BD1 5HQ,ADMIN
FOOD STANDARDS AGENCY - Westminster,FOOD STANDARDS AGENCY - Westminster,2019-02-20,EXP - PURCHASE OF GOODS/SERVICES - SUBSISTENCE,North 1,CORPORATE TRAVEL MANAGEMENT NORTH LTD,1011708586,108.20,Week 6 Travel Expenses,BD1 5HQ,PROGRAMME
FOOD STANDARDS AGENCY - Westminster,FOOD STANDARDS AGENCY - Westminster,2019-02-05,EXP - PURCHASE OF GOODS/SERVICES - RAIL TRAVEL,Wales and West 2 (England),CORPORATE TRAVEL MANAGEMENT NORTH LTD,1011708405,105.20,Week 4 Travel Expenses,BD1 5HQ,PROGRAMME
FOOD STANDARDS AGENCY - Westminster,FOOD STANDARDS AGENCY - Westminster,2019-02-05,EXP - PURCHASE OF GOODS/SERVICES - RAIL TRAVEL,North 2,CORPORATE TRAVEL MANAGEMENT NORTH LTD,1011708405,103.90,Week 4 Travel Expenses,BD1 5HQ,PROGRAMME
FOOD STANDARDS AGENCY - Westminster,FOOD STANDARDS AGENCY - Westminster,2019-02-20,EXP - PURCHASE OF GOODS/SERVICES - SUBSISTENCE,Food Incidents & Resilience - Prog,CORPORATE TRAVEL MANAGEMENT NORTH LTD,1011708586,100.60,Week 6 Travel Expenses,BD1 5HQ,PROGRAMME
FOOD STANDARDS AGENCY - Westminster,FOOD STANDARDS AGENCY - Westminster,2019-02-05,EXP - PURCHASE OF GOODS/SERVICES - AIR TRAVEL,"Novel Foods, GM, Radiological and Feed Additives",CORPORATE TRAVEL MANAGEMENT NORTH LTD,1011708405,100.30,Week 4 Travel Expenses,BD1 5HQ,ADMIN
FOOD STANDARDS AGENCY - Westminster,FOOD STANDARDS AGENCY - Westminster,2019-02-20,EXP - PURCHASE OF GOODS/SERVICES - SUBSISTENCE,Wales and West 1 (England),CORPORATE TRAVEL MANAGEMENT NORTH LTD,1011708586,96.20,Week 6 Travel Expenses,BD1 5HQ,PROGRAMME
FOOD STANDARDS AGENCY - Westminster,FOOD STANDARDS AGENCY - Westminster,2019-02-20,EXP - PURCHASE OF GOODS/SERVICES - SUBSISTENCE,Wales and West 2 (Wales),CORPORATE TRAVEL MANAGEMENT NORTH LTD,1011708586,96.20,Week 6 Travel Expenses,BD1 5HQ,PROGRAMME
FOOD STANDARDS AGENCY - Westminster,FOOD STANDARDS AGENCY - Westminster,2019-02-20,EXP - PURCHASE OF GOODS/SERVICES - RAIL TRAVEL,Programme and project delivery,CORPORATE TRAVEL MANAGEMENT NORTH LTD,1011708586,96.05,Week 6 Travel Expenses,BD1 5HQ,ADMIN
FOOD STANDARDS AGENCY - Westminster,FOOD STANDARDS AGENCY - Westminster,2019-02-26,EXP - PURCHASE OF GOODS/SERVICES - AIR TRAVEL,Operational Delivery,CORPORATE TRAVEL MANAGEMENT NORTH LTD,1011708650,95.78,Week 7 Travel Expenses,BD1 5HQ,PROGRAMME
FOOD STANDARDS AGENCY - Westminster,FOOD STANDARDS AGENCY - Westminster,2019-02-05,EXP - PURCHASE OF GOODS/SERVICES - RAIL TRAVEL,"Meat Hygiene, ABP, TSE",CORPORATE TRAVEL MANAGEMENT NORTH LTD,1011708405,93.70,Week 4 Travel Expenses,BD1 5HQ,ADMIN
FOOD STANDARDS AGENCY - Westminster,FOOD STANDARDS AGENCY - Westminster,2019-02-20,EXP - PURCHASE OF GOODS/SERVICES - RAIL TRAVEL,East 1,CORPORATE TRAVEL MANAGEMENT NORTH LTD,1011708586,91.90,Week 6 Travel Expenses,BD1 5HQ,PROGRAMME
FOOD STANDARDS AGENCY - Westminster,FOOD STANDARDS AGENCY - Westminster,2019-02-26,EXP - PURCHASE OF GOODS/SERVICES - RAIL TRAVEL,Chemical Contaminants and Residues,CORPORATE TRAVEL MANAGEMENT NORTH LTD,1011708650,89.30,Week 7 Travel Expenses,BD1 5HQ,ADMIN
FOOD STANDARDS AGENCY - Westminster,FOOD STANDARDS AGENCY - Westminster,2019-02-20,EXP - PURCHASE OF GOODS/SERVICES - AIR TRAVEL,NFCU Phase 2,CORPORATE TRAVEL MANAGEMENT NORTH LTD,1011708586,88.15,Week 6 Travel Expenses,BD1 5HQ,PROGRAMME
FOOD STANDARDS AGENCY - Westminster,FOOD STANDARDS AGENCY - Westminster,2019-02-26,EXP - PURCHASE OF GOODS/SERVICES - AIR TRAVEL,Regulatory & International,CORPORATE TRAVEL MANAGEMENT NORTH LTD,1011708650,86.55,Week 7 Travel Expenses,BD1 5HQ,ADMIN
FOOD STANDARDS AGENCY - Westminster,FOOD STANDARDS AGENCY - Westminster,2019-02-20,EXP - PURCHASE OF GOODS/SERVICES - SUBSISTENCE,Food Crime Unit - Prog,CORPORATE TRAVEL MANAGEMENT NORTH LTD,1011708586,86.20,Week 6 Travel Expenses,BD1 5HQ,PROGRAMME
FOOD STANDARDS AGENCY - Westminster,FOOD STANDARDS AGENCY - Westminster,2019-02-05,EXP - PURCHASE OF GOODS/SERVICES - SUBSISTENCE,North 1,CORPORATE TRAVEL MANAGEMENT NORTH LTD,1011708405,86.10,Week 4 Travel Expenses,BD1 5HQ,PROGRAMME
FOOD STANDARDS AGENCY - Westminster,FOOD STANDARDS AGENCY - Westminster,2019-02-12,EXP - PURCHASE OF GOODS/SERVICES - RAIL TRAVEL,Food Crime Unit - Prog,CORPORATE TRAVEL MANAGEMENT NORTH LTD,1011708496,84.70,Week 5 Travel Expenses,BD1 5HQ,PROGRAMME
FOOD STANDARDS AGENCY - Westminster,FOOD STANDARDS AGENCY - Westminster,2019-02-05,EXP - PURCHASE OF GOODS/SERVICES - SUBSISTENCE,East 1,CORPORATE TRAVEL MANAGEMENT NORTH LTD,1011708405,84.60,Week 4 Travel Expenses,BD1 5HQ,PROGRAMME
FOOD STANDARDS AGENCY - Westminster,FOOD STANDARDS AGENCY - Westminster,2019-02-20,EXP - PURCHASE OF GOODS/SERVICES - RAIL TRAVEL,Operations Assurance ,CORPORATE TRAVEL MANAGEMENT NORTH LTD,1011708586,84.00,Week 6 Travel Expenses,BD1 5HQ,PROGRAMME
FOOD STANDARDS AGENCY - Westminster,FOOD STANDARDS AGENCY - Westminster,2019-02-26,EXP - PURCHASE OF GOODS/SERVICES - RAIL TRAVEL,North 4,CORPORATE TRAVEL MANAGEMENT NORTH LTD,1011708650,82.00,Week 7 Travel Expenses,BD1 5HQ,PROGRAMME
FOOD STANDARDS AGENCY - Westminster,FOOD STANDARDS AGENCY - Westminster,2019-02-12,EXP - PURCHASE OF GOODS/SERVICES - RAIL TRAVEL,Wales and West 2 (England),CORPORATE TRAVEL MANAGEMENT NORTH LTD,1011708496,81.70,Week 5 Travel Expenses,BD1 5HQ,PROGRAMME
FOOD STANDARDS AGENCY - Westminster,FOOD STANDARDS AGENCY - Westminster,2019-02-05,EXP - PURCHASE OF GOODS/SERVICES - RAIL TRAVEL,Allergens,CORPORATE TRAVEL MANAGEMENT NORTH LTD,1011708405,81.00,Week 4 Travel Expenses,BD1 5HQ,ADMIN
FOOD STANDARDS AGENCY - Westminster,FOOD STANDARDS AGENCY - Westminster,2019-02-20,EXP - PURCHASE OF GOODS/SERVICES - SUBSISTENCE,Chief Scientific Advisors team,CORPORATE TRAVEL MANAGEMENT NORTH LTD,1011708586,79.60,Week 6 Travel Expenses,BD1 5HQ,ADMIN
FOOD STANDARDS AGENCY - Westminster,FOOD STANDARDS AGENCY - Westminster,2019-02-20,EXP - PURCHASE OF GOODS/SERVICES - SUBSISTENCE,Legal Branch A & Investigations,CORPORATE TRAVEL MANAGEMENT NORTH LTD,1011708586,75.60,Week 6 Travel Expenses,BD1 5HQ,ADMIN
FOOD STANDARDS AGENCY - Westminster,FOOD STANDARDS AGENCY - Westminster,2019-02-20,EXP - PURCHASE OF GOODS/SERVICES - RAIL TRAVEL,East 3,CORPORATE TRAVEL MANAGEMENT NORTH LTD,1011708586,74.00,Week 6 Travel Expenses,BD1 5HQ,PROGRAMME
FOOD STANDARDS AGENCY - Westminster,FOOD STANDARDS AGENCY - Westminster,2019-02-05,EXP - PURCHASE OF GOODS/SERVICES - RAIL TRAVEL,Wales and West 2 (Wales),CORPORATE TRAVEL MANAGEMENT NORTH LTD,1011708405,72.60,Week 4 Travel Expenses,BD1 5HQ,PROGRAMME
FOOD STANDARDS AGENCY - Westminster,FOOD STANDARDS AGENCY - Westminster,2019-02-20,EXP - PURCHASE OF GOODS/SERVICES - AIR TRAVEL,Analytics Unit,CORPORATE TRAVEL MANAGEMENT NORTH LTD,1011708586,71.77,Week 6 Travel Expenses,BD1 5HQ,ADMIN
FOOD STANDARDS AGENCY - Westminster,FOOD STANDARDS AGENCY - Westminster,2019-02-20,EXP - PURCHASE OF GOODS/SERVICES - RAIL TRAVEL,Wales and West 2 (Wales),CORPORATE TRAVEL MANAGEMENT NORTH LTD,1011708586,70.30,Week 6 Travel Expenses,BD1 5HQ,PROGRAMME
FOOD STANDARDS AGENCY - Westminster,FOOD STANDARDS AGENCY - Westminster,2019-02-12,EXP - PURCHASE OF GOODS/SERVICES - OTHER TRAVEL,Organisational Development,CORPORATE TRAVEL MANAGEMENT NORTH LTD,1011708496,69.98,Week 5 Travel Expenses,BD1 5HQ,ADMIN
FOOD STANDARDS AGENCY - Westminster,FOOD STANDARDS AGENCY - Westminster,2019-02-12,EXP - PURCHASE OF GOODS/SERVICES - SUBSISTENCE,Procurement,CORPORATE TRAVEL MANAGEMENT NORTH LTD,1011708496,69.60,Week 5 Travel Expenses,BD1 5HQ,ADMIN
FOOD STANDARDS AGENCY - Westminster,FOOD STANDARDS AGENCY - Westminster,2019-02-12,EXP - PURCHASE OF GOODS/SERVICES - RAIL TRAVEL,Wales and West 4 ,CORPORATE TRAVEL MANAGEMENT NORTH LTD,1011708496,68.26,Week 5 Travel Expenses,BD1 5HQ,PROGRAMME
FOOD STANDARDS AGENCY - Westminster,FOOD STANDARDS AGENCY - Westminster,2019-02-26,EXP - PURCHASE OF GOODS/SERVICES - AIR TRAVEL,Food Crime Unit - Admin,CORPORATE TRAVEL MANAGEMENT NORTH LTD,1011708650,63.59,Week 7 Travel Expenses,BD1 5HQ,ADMIN
FOOD STANDARDS AGENCY - Westminster,FOOD STANDARDS AGENCY - Westminster,2019-02-12,EXP - PURCHASE OF GOODS/SERVICES - SUBSISTENCE,Planning and Performance,CORPORATE TRAVEL MANAGEMENT NORTH LTD,1011708496,63.10,Week 5 Travel Expenses,BD1 5HQ,ADMIN
FOOD STANDARDS AGENCY - Westminster,FOOD STANDARDS AGENCY - Westminster,2019-02-20,EXP - PURCHASE OF GOODS/SERVICES - RAIL TRAVEL,Wales and West 3 ,CORPORATE TRAVEL MANAGEMENT NORTH LTD,1011708586,62.80,Week 6 Travel Expenses,BD1 5HQ,PROGRAMME
FOOD STANDARDS AGENCY - Westminster,FOOD STANDARDS AGENCY - Westminster,2019-02-20,EXP - PURCHASE OF GOODS/SERVICES - AIR TRAVEL,IT Information & Knowledge Management,CORPORATE TRAVEL MANAGEMENT NORTH LTD,1011708586,62.77,Week 6 Travel Expenses,BD1 5HQ,ADMIN
FOOD STANDARDS AGENCY - Westminster,FOOD STANDARDS AGENCY - Westminster,2019-02-12,EXP - PURCHASE OF GOODS/SERVICES - SUBSISTENCE,Wales and West 2 (Wales),CORPORATE TRAVEL MANAGEMENT NORTH LTD,1011708496,61.60,Week 5 Travel Expenses,BD1 5HQ,PROGRAMME
FOOD STANDARDS AGENCY - Westminster,FOOD STANDARDS AGENCY - Westminster,2019-02-05,EXP - PURCHASE OF GOODS/SERVICES - RAIL TRAVEL,North 1,CORPORATE TRAVEL MANAGEMENT NORTH LTD,1011708405,60.70,Week 4 Travel Expenses,BD1 5HQ,PROGRAMME
FOOD STANDARDS AGENCY - Westminster,FOOD STANDARDS AGENCY - Westminster,2019-02-26,EXP - PURCHASE OF GOODS/SERVICES - SUBSISTENCE,East 2,CORPORATE TRAVEL MANAGEMENT NORTH LTD,1011708650,59.60,Week 7 Travel Expenses,BD1 5HQ,PROGRAMME
FOOD STANDARDS AGENCY - Westminster,FOOD STANDARDS AGENCY - Westminster,2019-02-05,EXP - PURCHASE OF GOODS/SERVICES - RAIL TRAVEL,North 4,CORPORATE TRAVEL MANAGEMENT NORTH LTD,1011708405,59.15,Week 4 Travel Expenses,BD1 5HQ,PROGRAMME
FOOD STANDARDS AGENCY - Westminster,FOOD STANDARDS AGENCY - Westminster,2019-02-20,EXP - PURCHASE OF GOODS/SERVICES - RAIL TRAVEL,FINANCE ,CORPORATE TRAVEL MANAGEMENT NORTH LTD,1011708586,58.60,Week 6 Travel Expenses,BD1 5HQ,ADMIN
FOOD STANDARDS AGENCY - Westminster,FOOD STANDARDS AGENCY - Westminster,2019-02-26,EXP - PURCHASE OF GOODS/SERVICES - SUBSISTENCE,East 4,CORPORATE TRAVEL MANAGEMENT NORTH LTD,1011708650,57.55,Week 7 Travel Expenses,BD1 5HQ,PROGRAMME
FOOD STANDARDS AGENCY - Westminster,FOOD STANDARDS AGENCY - Westminster,2019-02-20,EXP - PURCHASE OF GOODS/SERVICES - SUBSISTENCE,Wales and West 2 (England),CORPORATE TRAVEL MANAGEMENT NORTH LTD,1011708586,56.70,Week 6 Travel Expenses,BD1 5HQ,PROGRAMME
FOOD STANDARDS AGENCY - Westminster,FOOD STANDARDS AGENCY - Westminster,2019-02-20,EXP - PURCHASE OF GOODS/SERVICES - SUBSISTENCE,North 4,CORPORATE TRAVEL MANAGEMENT NORTH LTD,1011708586,56.10,Week 6 Travel Expenses,BD1 5HQ,PROGRAMME
FOOD STANDARDS AGENCY - Westminster,FOOD STANDARDS AGENCY - Westminster,2019-02-05,EXP - PURCHASE OF GOODS/SERVICES - OTHER TRAVEL,Regulating our Future,CORPORATE TRAVEL MANAGEMENT NORTH LTD,1011708405,54.94,Week 4 Travel Expenses,BD1 5HQ,ADMIN
FOOD STANDARDS AGENCY - Westminster,FOOD STANDARDS AGENCY - Westminster,2019-02-20,EXP - PURCHASE OF GOODS/SERVICES - SUBSISTENCE,East 4,CORPORATE TRAVEL MANAGEMENT NORTH LTD,1011708586,54.10,Week 6 Travel Expenses,BD1 5HQ,PROGRAMME
FOOD STANDARDS AGENCY - Westminster,FOOD STANDARDS AGENCY - Westminster,2019-02-12,EXP - PURCHASE OF GOODS/SERVICES - SUBSISTENCE,Wales and West 3 ,CORPORATE TRAVEL MANAGEMENT NORTH LTD,1011708496,53.83,Week 5 Travel Expenses,BD1 5HQ,PROGRAMME
FOOD STANDARDS AGENCY - Westminster,FOOD STANDARDS AGENCY - Westminster,2019-02-12,EXP - PURCHASE OF GOODS/SERVICES - SUBSISTENCE,Wales and West 1 (England),CORPORATE TRAVEL MANAGEMENT NORTH LTD,1011708496,52.10,Week 5 Travel Expenses,BD1 5HQ,PROGRAMME
FOOD STANDARDS AGENCY - Westminster,FOOD STANDARDS AGENCY - Westminster,2019-02-20,EXP - PURCHASE OF GOODS/SERVICES - OTHER TRAVEL,NFCU Phase 2,CORPORATE TRAVEL MANAGEMENT NORTH LTD,1011708586,50.30,Week 6 Travel Expenses,BD1 5HQ,PROGRAMME
FOOD STANDARDS AGENCY - Westminster,FOOD STANDARDS AGENCY - Westminster,2019-02-20,EXP - PURCHASE OF GOODS/SERVICES - RAIL TRAVEL,Wales and West 1 (Wales),CORPORATE TRAVEL MANAGEMENT NORTH LTD,1011708586,50.10,Week 6 Travel Expenses,BD1 5HQ,PROGRAMME
FOOD STANDARDS AGENCY - Westminster,FOOD STANDARDS AGENCY - Westminster,2019-02-20,EXP - PURCHASE OF GOODS/SERVICES - RAIL TRAVEL,East 2,CORPORATE TRAVEL MANAGEMENT NORTH LTD,1011708586,45.55,Week 6 Travel Expenses,BD1 5HQ,PROGRAMME
FOOD STANDARDS AGENCY - Westminster,FOOD STANDARDS AGENCY - Westminster,2019-02-20,EXP - PURCHASE OF GOODS/SERVICES - SUBSISTENCE,East 3,CORPORATE TRAVEL MANAGEMENT NORTH LTD,1011708586,43.60,Week 6 Travel Expenses,BD1 5HQ,PROGRAMME
FOOD STANDARDS AGENCY - Westminster,FOOD STANDARDS AGENCY - Westminster,2019-02-12,EXP - PURCHASE OF GOODS/SERVICES - SUBSISTENCE,Non Meat Field Ops,CORPORATE TRAVEL MANAGEMENT NORTH LTD,1011708496,42.60,Week 5 Travel Expenses,BD1 5HQ,PROGRAMME
FOOD STANDARDS AGENCY - Westminster,FOOD STANDARDS AGENCY - Westminster,2019-02-05,EXP - PURCHASE OF GOODS/SERVICES - RAIL TRAVEL,Incident Handling and Engagement,CORPORATE TRAVEL MANAGEMENT NORTH LTD,1011708405,41.90,Week 4 Travel Expenses,BD1 5HQ,ADMIN
FOOD STANDARDS AGENCY - Westminster,FOOD STANDARDS AGENCY - Westminster,2019-02-26,EXP - PURCHASE OF GOODS/SERVICES - RAIL TRAVEL,Imports & Exports Team (Admin),CORPORATE TRAVEL MANAGEMENT NORTH LTD,1011708650,40.70,Week 7 Travel Expenses,BD1 5HQ,ADMIN
FOOD STANDARDS AGENCY - Westminster,FOOD STANDARDS AGENCY - Westminster,2019-02-05,EXP - PURCHASE OF GOODS/SERVICES - SUBSISTENCE,North 4,CORPORATE TRAVEL MANAGEMENT NORTH LTD,1011708405,40.60,Week 4 Travel Expenses,BD1 5HQ,PROGRAMME
FOOD STANDARDS AGENCY - Westminster,FOOD STANDARDS AGENCY - Westminster,2019-02-05,EXP - PURCHASE OF GOODS/SERVICES - OTHER TRAVEL,Non Meat Field Ops,CORPORATE TRAVEL MANAGEMENT NORTH LTD,1011708405,39.99,Week 4 Travel Expenses,BD1 5HQ,PROGRAMME
FOOD STANDARDS AGENCY - Westminster,FOOD STANDARDS AGENCY - Westminster,2019-02-12,EXP - PURCHASE OF GOODS/SERVICES - RAIL TRAVEL,"Meat Hygiene, ABP, TSE",CORPORATE TRAVEL MANAGEMENT NORTH LTD,1011708496,38.80,Week 5 Travel Expenses,BD1 5HQ,ADMIN
FOOD STANDARDS AGENCY - Westminster,FOOD STANDARDS AGENCY - Westminster,2019-02-20,EXP - PURCHASE OF GOODS/SERVICES - RAIL TRAVEL,"Food Additives, Flavourings, and Food Contact Materials",CORPORATE TRAVEL MANAGEMENT NORTH LTD,1011708586,38.30,Week 6 Travel Expenses,BD1 5HQ,ADMIN
FOOD STANDARDS AGENCY - Westminster,FOOD STANDARDS AGENCY - Westminster,2019-02-12,EXP - PURCHASE OF GOODS/SERVICES - RAIL TRAVEL,Surveillance,CORPORATE TRAVEL MANAGEMENT NORTH LTD,1011708496,37.80,Week 5 Travel Expenses,BD1 5HQ,ADMIN
FOOD STANDARDS AGENCY - Westminster,FOOD STANDARDS AGENCY - Westminster,2019-02-12,EXP - PURCHASE OF GOODS/SERVICES - RAIL TRAVEL,Resilience - Admin,CORPORATE TRAVEL MANAGEMENT NORTH LTD,1011708496,34.60,Week 5 Travel Expenses,BD1 5HQ,ADMIN
FOOD STANDARDS AGENCY - Westminster,FOOD STANDARDS AGENCY - Westminster,2019-02-05,EXP - PURCHASE OF GOODS/SERVICES - OTHER TRAVEL,Regulating our Future,CORPORATE TRAVEL MANAGEMENT NORTH LTD,1011708405,33.99,Week 4 Travel Expenses,BD1 5HQ,ADMIN
FOOD STANDARDS AGENCY - Westminster,FOOD STANDARDS AGENCY - Westminster,2019-02-12,EXP - PURCHASE OF GOODS/SERVICES - AIR TRAVEL,"Novel Foods, GM, Radiological and Feed Additives",CORPORATE TRAVEL MANAGEMENT NORTH LTD,1011708496,33.96,Week 5 Travel Expenses,BD1 5HQ,ADMIN
FOOD STANDARDS AGENCY - Westminster,FOOD STANDARDS AGENCY - Westminster,2019-02-26,EXP - PURCHASE OF GOODS/SERVICES - RAIL TRAVEL,North 3,CORPORATE TRAVEL MANAGEMENT NORTH LTD,1011708650,30.30,Week 7 Travel Expenses,BD1 5HQ,PROGRAMME
FOOD STANDARDS AGENCY - Westminster,FOOD STANDARDS AGENCY - Westminster,2019-02-05,EXP - PURCHASE OF GOODS/SERVICES - OTHER TRAVEL,"Food Additives, Flavourings, and Food Contact Materials",CORPORATE TRAVEL MANAGEMENT NORTH LTD,1011708405,29.95,Week 4 Travel Expenses,BD1 5HQ,ADMIN
FOOD STANDARDS AGENCY - Westminster,FOOD STANDARDS AGENCY - Westminster,2019-02-12,EXP - PURCHASE OF GOODS/SERVICES - RAIL TRAVEL,East 3,CORPORATE TRAVEL MANAGEMENT NORTH LTD,1011708496,29.90,Week 5 Travel Expenses,BD1 5HQ,PROGRAMME
FOOD STANDARDS AGENCY - Westminster,FOOD STANDARDS AGENCY - Westminster,2019-02-20,EXP - PURCHASE OF GOODS/SERVICES - RAIL TRAVEL,Planning and Performance,CORPORATE TRAVEL MANAGEMENT NORTH LTD,1011708586,27.70,Week 6 Travel Expenses,BD1 5HQ,ADMIN
FOOD STANDARDS AGENCY - Westminster,FOOD STANDARDS AGENCY - Westminster,2019-02-13,EXP - PURCHASE OF GOODS/SERVICES - OTHER FACILITIES COSTS  - MEETING ROOM HIRE,Wales and West 4 ,CALDER CONFERENCES LTD,1011708520,25.00,FSA Conference spend Nov 18 onwards,LS16 6RF,PROGRAMME
FOOD STANDARDS AGENCY - Westminster,FOOD STANDARDS AGENCY - Westminster,2019-02-20,EXP - PURCHASE OF GOODS/SERVICES - SUBSISTENCE,Wales and West 3 ,CORPORATE TRAVEL MANAGEMENT NORTH LTD,1011708586,24.10,Week 6 Travel Expenses,BD1 5HQ,PROGRAMME
FOOD STANDARDS AGENCY - Westminster,FOOD STANDARDS AGENCY - Westminster,2019-02-26,EXP - PURCHASE OF GOODS/SERVICES - RAIL TRAVEL,IT Information & Knowledge Management,CORPORATE TRAVEL MANAGEMENT NORTH LTD,1011708650,23.40,Week 7 Travel Expenses,BD1 5HQ,ADMIN
FOOD STANDARDS AGENCY - Westminster,FOOD STANDARDS AGENCY - Westminster,2019-02-12,EXP - PURCHASE OF GOODS/SERVICES - RAIL TRAVEL,General Food Hygiene,CORPORATE TRAVEL MANAGEMENT NORTH LTD,1011708496,20.10,Week 5 Travel Expenses,BD1 5HQ,ADMIN
FOOD STANDARDS AGENCY - Westminster,FOOD STANDARDS AGENCY - Westminster,2019-02-05,EXP - PURCHASE OF GOODS/SERVICES - RAIL TRAVEL,Wales and West 1 (England),CORPORATE TRAVEL MANAGEMENT NORTH LTD,1011708405,18.75,Week 4 Travel Expenses,BD1 5HQ,PROGRAMME
FOOD STANDARDS AGENCY - Westminster,FOOD STANDARDS AGENCY - Westminster,2019-02-12,EXP - PURCHASE OF GOODS/SERVICES - OTHER TRAVEL,Analytics Unit,CORPORATE TRAVEL MANAGEMENT NORTH LTD,1011708496,18.60,Week 5 Travel Expenses,BD1 5HQ,ADMIN
FOOD STANDARDS AGENCY - Westminster,FOOD STANDARDS AGENCY - Westminster,2019-02-05,EXP - PURCHASE OF GOODS/SERVICES - OTHER TRAVEL,Comms Directors Office,CORPORATE TRAVEL MANAGEMENT NORTH LTD,1011708405,17.99,Week 4 Travel Expenses,BD1 5HQ,ADMIN
FOOD STANDARDS AGENCY - Westminster,FOOD STANDARDS AGENCY - Westminster,2019-02-26,EXP - PURCHASE OF GOODS/SERVICES - RAIL TRAVEL,Planning and Performance,CORPORATE TRAVEL MANAGEMENT NORTH LTD,1011708650,16.05,Week 7 Travel Expenses,BD1 5HQ,ADMIN
FOOD STANDARDS AGENCY - Westminster,FOOD STANDARDS AGENCY - Westminster,2019-02-05,EXP - PURCHASE OF GOODS/SERVICES - OTHER TRAVEL,Organisational Development,CORPORATE TRAVEL MANAGEMENT NORTH LTD,1011708405,13.60,Week 4 Travel Expenses,BD1 5HQ,ADMIN
FOOD STANDARDS AGENCY - Westminster,FOOD STANDARDS AGENCY - Westminster,2019-02-12,EXP - PURCHASE OF GOODS/SERVICES - RAIL TRAVEL,Wales and West 2 (Wales),CORPORATE TRAVEL MANAGEMENT NORTH LTD,1011708496,13.50,Week 5 Travel Expenses,BD1 5HQ,PROGRAMME
FOOD STANDARDS AGENCY - Westminster,FOOD STANDARDS AGENCY - Westminster,2019-02-20,EXP - PURCHASE OF GOODS/SERVICES - OTHER TRAVEL,IT Information & Knowledge Management,CORPORATE TRAVEL MANAGEMENT NORTH LTD,1011708586,13.10,Week 6 Travel Expenses,BD1 5HQ,ADMIN
FOOD STANDARDS AGENCY - Westminster,FOOD STANDARDS AGENCY - Westminster,2019-02-05,EXP - PURCHASE OF GOODS/SERVICES - OTHER TRAVEL,Regulatory Delivery,CORPORATE TRAVEL MANAGEMENT NORTH LTD,1011708405,13.10,Week 4 Travel Expenses,BD1 5HQ,ADMIN
FOOD STANDARDS AGENCY - Westminster,FOOD STANDARDS AGENCY - Westminster,2019-02-20,EXP - PURCHASE OF GOODS/SERVICES - OTHER TRAVEL,Regulatory Delivery,CORPORATE TRAVEL MANAGEMENT NORTH LTD,1011708586,13.10,Week 6 Travel Expenses,BD1 5HQ,ADMIN
FOOD STANDARDS AGENCY - Westminster,FOOD STANDARDS AGENCY - Westminster,2019-02-12,EXP - PURCHASE OF GOODS/SERVICES - RAIL TRAVEL,Imports & Exports Team (Admin),CORPORATE TRAVEL MANAGEMENT NORTH LTD,1011708496,13.10,Week 5 Travel Expenses,BD1 5HQ,ADMIN
FOOD STANDARDS AGENCY - Westminster,FOOD STANDARDS AGENCY - Westminster,2019-02-05,EXP - PURCHASE OF GOODS/SERVICES - RAIL TRAVEL,East 2,CORPORATE TRAVEL MANAGEMENT NORTH LTD,1011708405,13.00,Week 4 Travel Expenses,BD1 5HQ,PROGRAMME
FOOD STANDARDS AGENCY - Westminster,FOOD STANDARDS AGENCY - Westminster,2019-02-12,EXP - PURCHASE OF GOODS/SERVICES - SUBSISTENCE,Chair & Deputy Chair,CORPORATE TRAVEL MANAGEMENT NORTH LTD,1011708496,11.65,Week 5 Travel Expenses,BD1 5HQ,ADMIN
FOOD STANDARDS AGENCY - Westminster,FOOD STANDARDS AGENCY - Westminster,2019-02-05,EXP - PURCHASE OF GOODS/SERVICES - AIR TRAVEL,Corporate Support Unit,CORPORATE TRAVEL MANAGEMENT NORTH LTD,1011708405,2.16,Week 4 Travel Expenses,BD1 5HQ,ADMIN
FOOD STANDARDS AGENCY - Westminster,FOOD STANDARDS AGENCY - Westminster,2019-02-26,EXP - PURCHASE OF GOODS/SERVICES - SUBSISTENCE,North 1,CORPORATE TRAVEL MANAGEMENT NORTH LTD,1011708650,2.05,Week 7 Travel Expenses,BD1 5HQ,PROGRAMME
FOOD STANDARDS AGENCY - Westminster,FOOD STANDARDS AGENCY - Westminster,2019-02-05,EXP - PURCHASE OF GOODS/SERVICES - FOREIGN SUBSISTENCE,Chemical Contaminants and Residues,CORPORATE TRAVEL MANAGEMENT NORTH LTD,1011708405,1.20,Week 4 Travel Expenses,BD1 5HQ,ADMIN
FOOD STANDARDS AGENCY - Westminster,FOOD STANDARDS AGENCY - Westminster,2019-02-12,EXP - PURCHASE OF GOODS/SERVICES - SUBSISTENCE,East 3,CORPORATE TRAVEL MANAGEMENT NORTH LTD,1011708496,1.20,Week 5 Travel Expenses,BD1 5HQ,PROGRAMME
FOOD STANDARDS AGENCY - Westminster,FOOD STANDARDS AGENCY - Westminster,2019-02-12,EXP - PURCHASE OF GOODS/SERVICES - SUBSISTENCE,Risk Assessment - operations,CORPORATE TRAVEL MANAGEMENT NORTH LTD,1011708496,1.20,Week 5 Travel Expenses,BD1 5HQ,ADMIN
FOOD STANDARDS AGENCY - Westminster,FOOD STANDARDS AGENCY - Westminster,2019-02-20,EXP - PURCHASE OF GOODS/SERVICES - FOREIGN SUBSISTENCE,Chemical Contaminants and Residues,CORPORATE TRAVEL MANAGEMENT NORTH LTD,1011708586,0.60,Week 6 Travel Expenses,BD1 5HQ,ADMIN
FOOD STANDARDS AGENCY - Westminster,FOOD STANDARDS AGENCY - Westminster,2019-02-20,EXP - PURCHASE OF GOODS/SERVICES - FOREIGN SUBSISTENCE,"Food Additives, Flavourings, and Food Contact Materials",CORPORATE TRAVEL MANAGEMENT NORTH LTD,1011708586,0.60,Week 6 Travel Expenses,BD1 5HQ,ADMIN
FOOD STANDARDS AGENCY - Westminster,FOOD STANDARDS AGENCY - Westminster,2019-02-12,EXP - PURCHASE OF GOODS/SERVICES - SUBSISTENCE,Resilience - Admin,CORPORATE TRAVEL MANAGEMENT NORTH LTD,1011708496,0.60,Week 5 Travel Expenses,BD1 5HQ,ADMIN
FOOD STANDARDS AGENCY - Westminster,FOOD STANDARDS AGENCY - Westminster,2019-02-05,EXP - PURCHASE OF GOODS/SERVICES - SUBSISTENCE,Chief Executive & Private Office,CORPORATE TRAVEL MANAGEMENT NORTH LTD,1011708405,0.60,Week 4 Travel Expenses,BD1 5HQ,ADMIN
FOOD STANDARDS AGENCY - Westminster,FOOD STANDARDS AGENCY - Westminster,2019-02-20,EXP - PURCHASE OF GOODS/SERVICES -  FOREIGN AIR TRAVEL,Food Crime Unit - Admin,CORPORATE TRAVEL MANAGEMENT NORTH LTD,1011708586,0.00,Week 6 Travel Expenses,BD1 5HQ,ADMIN
FOOD STANDARDS AGENCY - Westminster,FOOD STANDARDS AGENCY - Westminster,2019-02-05,EXP - PURCHASE OF GOODS/SERVICES - RAIL TRAVEL,Wales and West 3 ,CORPORATE TRAVEL MANAGEMENT NORTH LTD,1011708405,-103.50,Week 4 Travel Expenses,BD1 5HQ,PROGRAMME
FOOD STANDARDS AGENCY - Westminster,FOOD STANDARDS AGENCY - Westminster,2019-02-12,EXP - PURCHASE OF GOODS/SERVICES - RAIL TRAVEL,Procurement,CORPORATE TRAVEL MANAGEMENT NORTH LTD,1011708496,-127.00,Week 5 Travel Expenses,BD1 5HQ,ADMIN
FOOD STANDARDS AGENCY - Westminster,FOOD STANDARDS AGENCY - Westminster,2019-02-20,EXP - PURCHASE OF GOODS/SERVICES - RAIL TRAVEL,North 2,CORPORATE TRAVEL MANAGEMENT NORTH LTD,1011708586,-130.60,Week 6 Travel Expenses,BD1 5HQ,PROGRAMME
